Workbook

Sheet RWJF Population Model
B1: [insert purpose of this tool here] - Analysis
B3: Baseline population determined by the following criteria:
D4: (1) Criteria may include line of business, member ages and date range restrictions, including which timeframe is "year 1" and which is "year 2"
D5: (2) Criteria may include membership restrictions (e.g., must have been a member for at least 2 months in both year 1 and year 2)
D6: (3) Criteria may include geographic location limitations
B8: Dynamic variables are highlighted in yellow. Tables are modified when new variables are selected.
A9: 1 | B9: 1 | C9: 1 | D9: 1 | E9: 1 | F9: 1 | G9: 1 | H9: 1 | I9: 1 | J9: 1 | K9: 1 | L9: 1 | M9: 1 | N9: 1 | O9: 1 | P9: 1 | Q9: 1 | R9: 1 | S9: 1 | T9: 1 | U9: 1 | V9: 1 | W9: 1 | X9: 1 | Y9: 1 | Z9: 1 | AA9: 1 | AB9: 1 | AC9: 1 | AD9: 1 | AE9: 1 | AF9: 1 | AG9: 1 | AH9: 1 | AI9: 1 | AJ9: 1 | AK9: 1 | AL9: 1 | AM9: 1 | AN9: 1 | AO9: 1 | AP9: 1 | AQ9: 1 | AR9: 1 | AS9: 1 | AT9: 1 | AU9: 1 | AV9: 1 | AW9: 1 | AX9: 1 | AY9: 1 | AZ9: 1 | BA9: 1 | BB9: 1 | BC9: 1 | BD9: 1 | BE9: 1 | BF9: 1 | BG9: 1 | BH9: 1 | BI9: 1 | BJ9: 1 | BK9: 1 | BL9: 1 | BM9: 1 | BN9: 1 | BO9: 1 | BP9: 1 | BQ9: 1 | BR9: 1 | BS9: 1 | BT9: 1 | BU9: 1 | BV9: 1 | BW9: 1 | BX9: 1 | BY9: 1 | BZ9: 1 | CA9: 1 | CB9: 1 | CC9: 1 | CD9: 1 | CE9: 1 | CF9: 1 | CG9: 1 | CH9: 1 | CI9: 1 | CJ9: 1 | CK9: 1 | CL9: 1 | CM9: 1 | CN9: 1 | CO9: 1 | CP9: 1 | CQ9: 1 | CR9: 1 | CS9: 1 | CT9: 1 | CU9: 1
A10: 1 | B10: 2 | C10: 3 | D10: 4 | E10: 5 | F10: 6 | G10: 7 | H10: 8 | I10: 9 | J10: 10 | K10: 11 | L10: 12 | M10: 13 | N10: 14 | O10: 15 | P10: 16 | Q10: 17 | R10: 18 | S10: 19 | T10: 20 | U10: 21 | V10: 22 | W10: 23 | X10: 24 | Y10: 25 | Z10: 26 | AA10: 27 | AB10: 28 | AC10: 29 | AD10: 30 | AE10: 31 | AF10: 32 | AG10: 33 | AH10: 34 | AI10: 35 | AJ10: 36 | AK10: 37 | AL10: 38 | AM10: 39 | AN10: 40 | AO10: 41 | AP10: 42 | AQ10: 43 | AR10: 44 | AS10: 45 | AT10: 46 | AU10: 47 | AV10: 48 | AW10: 49 | AX10: 50 | AY10: 51 | AZ10: 52 | BA10: 53 | BB10: 54 | BC10: 55 | BD10: 56 | BE10: 57 | BF10: 58 | BG10: 59 | BH10: 60 | BI10: 61 | BJ10: 62 | BK10: 63 | BL10: 64 | BM10: 65 | BN10: 66 | BO10: 67 | BP10: 68 | BQ10: 69 | BR10: 70 | BS10: 71 | BT10: 72 | BU10: 73 | BV10: 74 | BW10: 75 | BX10: 76 | BY10: 77 | BZ10: 78 | CA10: 79 | CB10: 80 | CC10: 81 | CD10: 82 | CE10: 83 | CF10: 84 | CG10: 85 | CH10: 86 | CI10: 87 | CJ10: 88 | CK10: 89 | CL10: 90 | CM10: 91 | CN10: 92 | CO10: 93 | CP10: 94 | CQ10: 95 | CR10: 96 | CS10: 97 | CT10: 98 | CU10: 100
B13: Enter Assumptions: | BE13: <=== Click to Reset Criteria to Baseline Population
C16: Which crossection of the population would you like to analyze?
I19: Which group should the population be associated with?: | AO19: Group A | AZ19: <=== Select Group Criteria
C21: Enter the minimum # of "medically complex" criteria the member met in 2011?: | AZ21: <=== Select Criteria Value (at least) - 2011
J23: Which Year 1 PMPM Percentile do you want to isolate?: | AO23: 50 | AZ23: <=== Select Percentile by PMPM (at least) - Yr 1
J25: Which Year 2 PMPM Percentile do you want to isolate?: | AO25: 50 | AZ25: <=== Select Percentile by PMPM (at least) - Yr 2
K27: The 2 Year Period PMPM of selected population crossection is: | AO27: =IF($AO$33=2010,Macro_Data!$N$8,IF($AO$33=2011,Macro_Data!$O$8,IF($AO$33="Total",Macro_Data!$Q$8,""))) -> 291.6136557
C30: How would you like to further limit the population crossection based on assumptions regarding "episodic spend" members?
J33: Year: | AO33: Total | AZ33: <=== Select Desired Year for PMPM Threshold
F36: % the Yr 2 PMPM should be increased to set "episodic spend" threshold?: | AO36: 0 | AZ36: <=== Select % Markup from Yr 2 PMPM
C38: New PMPM threshold (lower bound) that serves to identify "episodic spending": | AO38: =$AO$27*(1+$AO$36) -> 291.6136557
C40: Minimum # of Months that member spend exceeded "episodic spend" threshold: | AZ40: <=== Select # of Months (0-24)
E43: What are the demographics of the selected population?
AT46: PMPM
Z47: =COUNTIF(Input!$IP$2:$IP$25001,1) -> 18
K48: Total Members: | AT48: Type | BG48: Year 1 | BQ48: Year 2 | CA48: D | CK48: 2 YR Period Total
K50: Average Age of Population: | Z50: =AVERAGEIF(Input!$IP$2:$IP$25001,1,Input!$C$2:$C$25001) -> 16.27777778 | AT50: Medical | BG50: =SUMIF(Input!$IP$2:$IP$25001,1,Input!$DY$2:$DY$25001)/SUMIF(Input!$IP$2:$IP$25001,1,Input!$EQ$2:$EQ$25001) -> 81.63319444 | BQ50: =SUMIF(Input!$IP$2:$IP$25001,1,Input!$DZ$2:$DZ$25001)/SUMIF(Input!$IP$2:$IP$25001,1,Input!$ER$2:$ER$25001) -> 223.9371635 | CA50: =BQ50-BG50 -> 142.303969 | CK50: =SUMIF(Input!$IP$2:$IP$25001,1,Input!$JB$2:$JB$25001)/SUMIF(Input!$IP$2:$IP$25001,1,Input!$JF$2:$JF$25001) -> 151.4426887
K52: % Female: | Z52: =SUMIF(Input!$IP$2:$IP$25001,1,Input!$IR$2:$IR$25001)/$Z$47 -> 0.3333333333 | AT52: Rx | BG52: =SUMIF(Input!$IP$2:$IP$25001,1,Input!$EC$2:$EC$25001)/SUMIF(Input!$IP$2:$IP$25001,1,Input!$EQ$2:$EQ$25001) -> 123.1580556 | BQ52: =SUMIF(Input!$IP$2:$IP$25001,1,Input!$ED$2:$ED$25001)/SUMIF(Input!$IP$2:$IP$25001,1,Input!$ER$2:$ER$25001) -> 157.8382212 | CA52: =BQ52-BG52 -> 34.6801656 | CK52: =SUMIF(Input!$IP$2:$IP$25001,1,Input!$JC$2:$JC$25001)/SUMIF(Input!$IP$2:$IP$25001,1,Input!$JF$2:$JF$25001) -> 140.170967
E54: Population Yr 1 - Yr 2 Medical & Rx PGA: | Z54: =SUMIF(Input!$IP$2:$IP$25001,1,Input!$JD$2:$JD$25001) -> 123644.19 | AT54: Med + Rx Total | BG54: =SUMIF(Input!$IP$2:$IP$25001,1,Input!$EG$2:$EG$25001)/SUMIF(Input!$IP$2:$IP$25001,1,Input!$EQ$2:$EQ$25001) -> 204.79125 | BQ54: =SUMIF(Input!$IP$2:$IP$25001,1,Input!$EJ$2:$EJ$25001)/SUMIF(Input!$IP$2:$IP$25001,1,Input!$ER$2:$ER$25001) -> 381.7753846 | CA54: =BQ54-BG54 -> 176.9841346 | CK54: =SUMIF(Input!$IP$2:$IP$25001,1,Input!$JD$2:$JD$25001)/SUMIF(Input!$IP$2:$IP$25001,1,Input!$JF$2:$JF$25001) -> 291.6136557
K56: Total Member Months: | Z56: =SUMIF(Input!$IP$2:$IP$25001,1,Input!$JF$2:$JF$25001) -> 424 | AT56: Behavioral Health (CCBH) | BG56: =SUMIF(Input!$IP$2:$IP$25001,1,Input!$EO$2:$EO$25001)/SUMIF(Input!$IP$2:$IP$25001,1,Input!$EQ$2:$EQ$25001) -> 302.2401389 | BQ56: =SUMIF(Input!$IP$2:$IP$25001,1,Input!$EP$2:$EP$25001)/SUMIF(Input!$IP$2:$IP$25001,1,Input!$ER$2:$ER$25001) -> 398.143125 | CA56: =BQ56-BG56 -> 95.90298611 | CK56: =SUMIF(Input!$IP$2:$IP$25001,1,Input!$MB$2:$MB$25001)/SUMIF(Input!$IP$2:$IP$25001,1,Input!$JF$2:$JF$25001) -> 349.2868868
AT58: Grand Total | BG58: =SUMIF(Input!$IP$2:$IP$25001,1,Input!$MC$2:$MC$25001)/SUMIF(Input!$IP$2:$IP$25001,1,Input!$EQ$2:$EQ$25001) -> 507.0313889 | BQ58: =SUMIF(Input!$IP$2:$IP$25001,1,Input!$MD$2:$MD$25001)/SUMIF(Input!$IP$2:$IP$25001,1,Input!$ER$2:$ER$25001) -> 779.9185096 | CA58: =BQ58-BG58 -> 272.8871207 | CK58: =SUMIF(Input!$IP$2:$IP$25001,1,Input!$ME$2:$ME$25001)/SUMIF(Input!$IP$2:$IP$25001,1,Input!$JF$2:$JF$25001) -> 640.9005425
BV63: N= | BY63: =Macro_Data!U32 -> 18
BV65: =Macro_Data!T33 ->  | BY65: =Macro_Data!U33 -> 
E83: What types of services does the selected population utilize?
AH86: PMPM | BO86: Annual Units / 1,000
L87: UPMC HP Financial Service Type | AH87: Year 1 | AN87: Year 2 | AT87: % Year 2 $ | AZ87: D | BF87: % D | BO87: Year 1 | BU87: Year 2 | CA87: D | CG87: % D
L88: Inpatient Facility - Medical Surgical | AH88: =SUMIF(Input!$IP$2:$IP$25001,1,Input!$I$2:$I$25001)/SUMIF(Input!$IP$2:$IP$25001,1,Input!$EQ$2:$EQ$25001) -> 6.207962963 | AN88: =SUMIF(Input!$IP$2:$IP$25001,1,Input!$J$2:$J$25001)/SUMIF(Input!$IP$2:$IP$25001,1,Input!$ER$2:$ER$25001) -> 36.76807692 | AT88: =AN88/$AN$112 -> 0.0963081393 | AZ88: =AN88-AH88 -> 30.56011396 | BF88: =IFERROR(AZ88/AH88,"") -> 4.922728138 | BO88: =(SUMIF(Input!$IP$2:$IP$25001,1,Input!$BE$2:$BE$25001)/SUMIF(Input!$IP$2:$IP$25001,1,Input!$EQ$2:$EQ$25001))*12000 -> 55.55555556 | BU88: =(SUMIF(Input!$IP$2:$IP$25001,1,Input!$BF$2:$BF$25001)/SUMIF(Input!$IP$2:$IP$25001,1,Input!$ER$2:$ER$25001))*12000 -> 57.69230769 | CA88: =BU88-BO88 -> 2.136752137 | CG88: =IFERROR(CA88/BO88,"") -> 0.03846153846
L89: Inpatient Facility -Skilled Nursing | AH89: =SUMIF(Input!$IP$2:$IP$25001,1,Input!$M$2:$M$25001)/SUMIF(Input!$IP$2:$IP$25001,1,Input!$EQ$2:$EQ$25001) -> 0 | AN89: =SUMIF(Input!$IP$2:$IP$25001,1,Input!$N$2:$N$25001)/SUMIF(Input!$IP$2:$IP$25001,1,Input!$ER$2:$ER$25001) -> 0 | AT89: 0 | AZ89: 0 | BF89: =IFERROR(AZ89/AH89,"") ->  | BO89: =(SUMIF(Input!$IP$2:$IP$25001,1,Input!$BI$2:$BI$25001)/SUMIF(Input!$IP$2:$IP$25001,1,Input!$EQ$2:$EQ$25001))*12000 -> 0 | BU89: =(SUMIF(Input!$IP$2:$IP$25001,1,Input!$BJ$2:$BJ$25001)/SUMIF(Input!$IP$2:$IP$25001,1,Input!$ER$2:$ER$25001))*12000 -> 0 | CA89: =BU89-BO89 -> 0 | CG89: =IFERROR(CA89/BO89,"") -> 
L90: Inpatient Facility - Rehabilitation | AH90: =SUMIF(Input!$IP$2:$IP$25001,1,Input!$K$2:$K$25001)/SUMIF(Input!$IP$2:$IP$25001,1,Input!$EQ$2:$EQ$25001) -> 0 | AN90: =SUMIF(Input!$IP$2:$IP$25001,1,Input!$L$2:$L$25001)/SUMIF(Input!$IP$2:$IP$25001,1,Input!$ER$2:$ER$25001) -> 0 | AT90: 0 | AZ90: 0 | BO90: =(SUMIF(Input!$IP$2:$IP$25001,1,Input!$BG$2:$BG$25001)/SUMIF(Input!$IP$2:$IP$25001,1,Input!$EQ$2:$EQ$25001))*12000 -> 0 | BU90: =(SUMIF(Input!$IP$2:$IP$25001,1,Input!$BH$2:$BH$25001)/SUMIF(Input!$IP$2:$IP$25001,1,Input!$ER$2:$ER$25001))*12000 -> 0 | CA90: =BU90-BO90 -> 0
L91: Inpatient Facility - Other | AH91: =SUMIF(Input!$IP$2:$IP$25001,1,Input!$O$2:$O$25001)/SUMIF(Input!$IP$2:$IP$25001,1,Input!$EQ$2:$EQ$25001) -> 0 | AN91: =SUMIF(Input!$IP$2:$IP$25001,1,Input!$P$2:$P$25001)/SUMIF(Input!$IP$2:$IP$25001,1,Input!$ER$2:$ER$25001) -> 28.28846154 | AT91: 0.07409713323 | AZ91: 28.28846154 | BO91: =(SUMIF(Input!$IP$2:$IP$25001,1,Input!$BK$2:$BK$25001)/SUMIF(Input!$IP$2:$IP$25001,1,Input!$EQ$2:$EQ$25001))*12000 -> 0 | BU91: =(SUMIF(Input!$IP$2:$IP$25001,1,Input!$BL$2:$BL$25001)/SUMIF(Input!$IP$2:$IP$25001,1,Input!$ER$2:$ER$25001))*12000 -> 57.69230769 | CA91: 57.69230769
L92: Observations | AH92: =SUMIF(Input!$IP$2:$IP$25001,1,Input!$Q$2:$Q$25001)/SUMIF(Input!$IP$2:$IP$25001,1,Input!$EQ$2:$EQ$25001) -> 5.838194444 | AN92: =SUMIF(Input!$IP$2:$IP$25001,1,Input!$R$2:$R$25001)/SUMIF(Input!$IP$2:$IP$25001,1,Input!$ER$2:$ER$25001) -> 10.81730769 | AT92: 0.02833421988 | AZ92: 4.979113248 | BF92: 0.8528515614 | BO92: =(SUMIF(Input!$IP$2:$IP$25001,1,Input!$BM$2:$BM$25001)/SUMIF(Input!$IP$2:$IP$25001,1,Input!$EQ$2:$EQ$25001))*12000 -> 55.55555556 | BU92: =(SUMIF(Input!$IP$2:$IP$25001,1,Input!$BN$2:$BN$25001)/SUMIF(Input!$IP$2:$IP$25001,1,Input!$ER$2:$ER$25001))*12000 -> 57.69230769 | CA92: 2.136752137 | CG92: 0.03846153846
L93: Emergency Room | AH93: =SUMIF(Input!$IP$2:$IP$25001,1,Input!$S$2:$S$25001)/SUMIF(Input!$IP$2:$IP$25001,1,Input!$EQ$2:$EQ$25001) -> 15.36592593 | AN93: =SUMIF(Input!$IP$2:$IP$25001,1,Input!$T$2:$T$25001)/SUMIF(Input!$IP$2:$IP$25001,1,Input!$ER$2:$ER$25001) -> 24.17043269 | AT93: 0.06331061055 | AZ93: 8.804506766 | BF93: 0.5729890154 | BO93: =(SUMIF(Input!$IP$2:$IP$25001,1,Input!$BO$2:$BO$25001)/SUMIF(Input!$IP$2:$IP$25001,1,Input!$EQ$2:$EQ$25001))*12000 -> 666.6666667 | BU93: =(SUMIF(Input!$IP$2:$IP$25001,1,Input!$BP$2:$BP$25001)/SUMIF(Input!$IP$2:$IP$25001,1,Input!$ER$2:$ER$25001))*12000 -> 980.7692308 | CA93: 314.1025641 | CG93: 0.4711538462
L94: Outpatient Surgery | AH94: =SUMIF(Input!$IP$2:$IP$25001,1,Input!$U$2:$U$25001)/SUMIF(Input!$IP$2:$IP$25001,1,Input!$EQ$2:$EQ$25001) -> 4.876574074 | AN94: =SUMIF(Input!$IP$2:$IP$25001,1,Input!$V$2:$V$25001)/SUMIF(Input!$IP$2:$IP$25001,1,Input!$ER$2:$ER$25001) -> 6.029038462 | AT94: 0.01579210893 | AZ94: 1.152464387 | BF94: 0.2363266445 | BO94: =(SUMIF(Input!$IP$2:$IP$25001,1,Input!$BQ$2:$BQ$25001)/SUMIF(Input!$IP$2:$IP$25001,1,Input!$EQ$2:$EQ$25001))*12000 -> 166.6666667 | BU94: =(SUMIF(Input!$IP$2:$IP$25001,1,Input!$BR$2:$BR$25001)/SUMIF(Input!$IP$2:$IP$25001,1,Input!$ER$2:$ER$25001))*12000 -> 115.3846154 | CA94: -51.28205128 | CG94: -0.3076923077
L95: Outpatient Facility - Other | AH95: =SUMIF(Input!$IP$2:$IP$25001,1,Input!$W$2:$W$25001)/SUMIF(Input!$IP$2:$IP$25001,1,Input!$EQ$2:$EQ$25001) -> 1.920092593 | AN95: =SUMIF(Input!$IP$2:$IP$25001,1,Input!$X$2:$X$25001)/SUMIF(Input!$IP$2:$IP$25001,1,Input!$ER$2:$ER$25001) -> 21.375 | AT95: 0.05598841848 | AZ95: 19.45490741 | BF95: 10.13227564 | BO95: =(SUMIF(Input!$IP$2:$IP$25001,1,Input!$BS$2:$BS$25001)/SUMIF(Input!$IP$2:$IP$25001,1,Input!$EQ$2:$EQ$25001))*12000 -> 388.8888889 | BU95: =(SUMIF(Input!$IP$2:$IP$25001,1,Input!$BT$2:$BT$25001)/SUMIF(Input!$IP$2:$IP$25001,1,Input!$ER$2:$ER$25001))*12000 -> 2538.461538 | CA95: 2149.57265 | CG95: 5.527472527
L96: Therapy Services | AH96: =SUMIF(Input!$IP$2:$IP$25001,1,Input!$Y$2:$Y$25001)/SUMIF(Input!$IP$2:$IP$25001,1,Input!$EQ$2:$EQ$25001) -> 0.1574074074 | AN96: =SUMIF(Input!$IP$2:$IP$25001,1,Input!$Z$2:$Z$25001)/SUMIF(Input!$IP$2:$IP$25001,1,Input!$ER$2:$ER$25001) -> 2.042115385 | AT96: 0.005348996994 | AZ96: 1.884707977 | BF96: 11.97343891 | BO96: =(SUMIF(Input!$IP$2:$IP$25001,1,Input!$BU$2:$BU$25001)/SUMIF(Input!$IP$2:$IP$25001,1,Input!$EQ$2:$EQ$25001))*12000 -> 55.55555556 | BU96: =(SUMIF(Input!$IP$2:$IP$25001,1,Input!$BV$2:$BV$25001)/SUMIF(Input!$IP$2:$IP$25001,1,Input!$ER$2:$ER$25001))*12000 -> 750 | CA96: 694.4444444 | CG96: 12.5
L97: Diagnostics - Lab services | AH97: =SUMIF(Input!$IP$2:$IP$25001,1,Input!$AA$2:$AA$25001)/SUMIF(Input!$IP$2:$IP$25001,1,Input!$EQ$2:$EQ$25001) -> 1.874351852 | AN97: =SUMIF(Input!$IP$2:$IP$25001,1,Input!$AB$2:$AB$25001)/SUMIF(Input!$IP$2:$IP$25001,1,Input!$ER$2:$ER$25001) -> 10.37875 | AT97: 0.02718548764 | AZ97: 8.504398148 | BF97: 4.537247444 | BO97: =(SUMIF(Input!$IP$2:$IP$25001,1,Input!$BW$2:$BW$25001)/SUMIF(Input!$IP$2:$IP$25001,1,Input!$EQ$2:$EQ$25001))*12000 -> 944.4444444 | BU97: =(SUMIF(Input!$IP$2:$IP$25001,1,Input!$BX$2:$BX$25001)/SUMIF(Input!$IP$2:$IP$25001,1,Input!$ER$2:$ER$25001))*12000 -> 2192.307692 | CA97: 1247.863248 | CG97: 1.321266968
L98: Diagnostics - High Tech Radiology | AH98: =SUMIF(Input!$IP$2:$IP$25001,1,Input!$AC$2:$AC$25001)/SUMIF(Input!$IP$2:$IP$25001,1,Input!$EQ$2:$EQ$25001) -> 1.950509259 | AN98: =SUMIF(Input!$IP$2:$IP$25001,1,Input!$AD$2:$AD$25001)/SUMIF(Input!$IP$2:$IP$25001,1,Input!$ER$2:$ER$25001) -> 2.144759615 | AT98: 0.005617857258 | AZ98: 0.1942503561 | BF98: 0.09958955857 | BO98: =(SUMIF(Input!$IP$2:$IP$25001,1,Input!$BY$2:$BY$25001)/SUMIF(Input!$IP$2:$IP$25001,1,Input!$EQ$2:$EQ$25001))*12000 -> 55.55555556 | BU98: =(SUMIF(Input!$IP$2:$IP$25001,1,Input!$BZ$2:$BZ$25001)/SUMIF(Input!$IP$2:$IP$25001,1,Input!$ER$2:$ER$25001))*12000 -> 115.3846154 | CA98: 59.82905983 | CG98: 1.076923077
L99: Diagnostics - Low Tech Radiology | AH99: =SUMIF(Input!$IP$2:$IP$25001,1,Input!$AE$2:$AE$25001)/SUMIF(Input!$IP$2:$IP$25001,1,Input!$EQ$2:$EQ$25001) -> 2.260092593 | AN99: =SUMIF(Input!$IP$2:$IP$25001,1,Input!$AF$2:$AF$25001)/SUMIF(Input!$IP$2:$IP$25001,1,Input!$ER$2:$ER$25001) -> 2.368173077 | AT99: 0.006203053346 | AZ99: 0.1080804843 | BF99: 0.04782126391 | BO99: =(SUMIF(Input!$IP$2:$IP$25001,1,Input!$CA$2:$CA$25001)/SUMIF(Input!$IP$2:$IP$25001,1,Input!$EQ$2:$EQ$25001))*12000 -> 277.7777778 | BU99: =(SUMIF(Input!$IP$2:$IP$25001,1,Input!$CB$2:$CB$25001)/SUMIF(Input!$IP$2:$IP$25001,1,Input!$ER$2:$ER$25001))*12000 -> 346.1538462 | CA99: 68.37606838 | CG99: 0.2461538462
L100: Diagnostics - Radiation Therapy | AH100: =SUMIF(Input!$IP$2:$IP$25001,1,Input!$AG$2:$AG$25001)/SUMIF(Input!$IP$2:$IP$25001,1,Input!$EQ$2:$EQ$25001) -> 0 | AN100: =SUMIF(Input!$IP$2:$IP$25001,1,Input!$AH$2:$AH$25001)/SUMIF(Input!$IP$2:$IP$25001,1,Input!$ER$2:$ER$25001) -> 0 | AT100: 0 | AZ100: 0 | BO100: =(SUMIF(Input!$IP$2:$IP$25001,1,Input!$CC$2:$CC$25001)/SUMIF(Input!$IP$2:$IP$25001,1,Input!$EQ$2:$EQ$25001))*12000 -> 0 | BU100: =(SUMIF(Input!$IP$2:$IP$25001,1,Input!$CD$2:$CD$25001)/SUMIF(Input!$IP$2:$IP$25001,1,Input!$ER$2:$ER$25001))*12000 -> 0 | CA100: 0
L101: PCP Services | AH101: =SUMIF(Input!$IP$2:$IP$25001,1,Input!$AI$2:$AI$25001)/SUMIF(Input!$IP$2:$IP$25001,1,Input!$EQ$2:$EQ$25001) -> 22.66925926 | AN101: =SUMIF(Input!$IP$2:$IP$25001,1,Input!$AJ$2:$AJ$25001)/SUMIF(Input!$IP$2:$IP$25001,1,Input!$ER$2:$ER$25001) -> 22.395 | AT101: 0.05866014652 | AZ101: -0.2742592593 | BF101: -0.01209828941 | BO101: =(SUMIF(Input!$IP$2:$IP$25001,1,Input!$CE$2:$CE$25001)/SUMIF(Input!$IP$2:$IP$25001,1,Input!$EQ$2:$EQ$25001))*12000 -> 3722.222222 | BU101: =(SUMIF(Input!$IP$2:$IP$25001,1,Input!$CF$2:$CF$25001)/SUMIF(Input!$IP$2:$IP$25001,1,Input!$ER$2:$ER$25001))*12000 -> 4038.461538 | CA101: 316.2393162 | CG101: 0.0849598163
L102: Specialist Services | AH102: =SUMIF(Input!$IP$2:$IP$25001,1,Input!$AK$2:$AK$25001)/SUMIF(Input!$IP$2:$IP$25001,1,Input!$EQ$2:$EQ$25001) -> 14.47226852 | AN102: =SUMIF(Input!$IP$2:$IP$25001,1,Input!$AL$2:$AL$25001)/SUMIF(Input!$IP$2:$IP$25001,1,Input!$ER$2:$ER$25001) -> 20.4175 | AT102: 0.05348039927 | AZ102: 5.945231481 | BF102: 0.4108016289 | BO102: =(SUMIF(Input!$IP$2:$IP$25001,1,Input!$CG$2:$CG$25001)/SUMIF(Input!$IP$2:$IP$25001,1,Input!$EQ$2:$EQ$25001))*12000 -> 1722.222222 | BU102: =(SUMIF(Input!$IP$2:$IP$25001,1,Input!$CH$2:$CH$25001)/SUMIF(Input!$IP$2:$IP$25001,1,Input!$ER$2:$ER$25001))*12000 -> 2423.076923 | CA102: 700.8547009 | CG102: 0.4069478908
L103: DME & Medical Supplies | AH103: =SUMIF(Input!$IP$2:$IP$25001,1,Input!$IT$2:$IT$25001)/SUMIF(Input!$IP$2:$IP$25001,1,Input!$EQ$2:$EQ$25001) -> 2.399861111 | AN103: =SUMIF(Input!$IP$2:$IP$25001,1,Input!$IU$2:$IU$25001)/SUMIF(Input!$IP$2:$IP$25001,1,Input!$ER$2:$ER$25001) -> 19.48557692 | AT103: 0.05103937474 | AZ103: 17.08571581 | BF103: 7.119460261 | BO103: =(SUMIF(Input!$IP$2:$IP$25001,1,Input!$IX$2:$IX$25001)/SUMIF(Input!$IP$2:$IP$25001,1,Input!$EQ$2:$EQ$25001))*12000 -> 333.3333333 | BU103: =(SUMIF(Input!$IP$2:$IP$25001,1,Input!$IY$2:$IY$25001)/SUMIF(Input!$IP$2:$IP$25001,1,Input!$ER$2:$ER$25001))*12000 -> 230.7692308 | CA103: -102.5641026 | CG103: -0.3076923077
L104: Medical Transport - Ambulance | AH104: =SUMIF(Input!$IP$2:$IP$25001,1,Input!$AQ$2:$AQ$25001)/SUMIF(Input!$IP$2:$IP$25001,1,Input!$EQ$2:$EQ$25001) -> 1.640324074 | AN104: =SUMIF(Input!$IP$2:$IP$25001,1,Input!$AR$2:$AR$25001)/SUMIF(Input!$IP$2:$IP$25001,1,Input!$ER$2:$ER$25001) -> 5.154471154 | AT104: 0.01350131874 | AZ104: 3.51414708 | BF104: 2.142349268 | BO104: =(SUMIF(Input!$IP$2:$IP$25001,1,Input!$CM$2:$CM$25001)/SUMIF(Input!$IP$2:$IP$25001,1,Input!$EQ$2:$EQ$25001))*12000 -> 166.6666667 | BU104: =(SUMIF(Input!$IP$2:$IP$25001,1,Input!$CN$2:$CN$25001)/SUMIF(Input!$IP$2:$IP$25001,1,Input!$ER$2:$ER$25001))*12000 -> 346.1538462 | CA104: 179.4871795 | CG104: 1.076923077
L105: Injectable Drugs | AH105: =SUMIF(Input!$IP$2:$IP$25001,1,Input!$AS$2:$AS$25001)/SUMIF(Input!$IP$2:$IP$25001,1,Input!$EQ$2:$EQ$25001) -> 0.0003703703704 | AN105: =SUMIF(Input!$IP$2:$IP$25001,1,Input!$AT$2:$AT$25001)/SUMIF(Input!$IP$2:$IP$25001,1,Input!$ER$2:$ER$25001) -> 0.8057692308 | AT105: 0.002110584556 | AZ105: 0.8053988604 | BF105: 2174.576923 | BO105: =(SUMIF(Input!$IP$2:$IP$25001,1,Input!$CO$2:$CO$25001)/SUMIF(Input!$IP$2:$IP$25001,1,Input!$EQ$2:$EQ$25001))*12000 -> 55.55555556 | BU105: =(SUMIF(Input!$IP$2:$IP$25001,1,Input!$CP$2:$CP$25001)/SUMIF(Input!$IP$2:$IP$25001,1,Input!$ER$2:$ER$25001))*12000 -> 173.0769231 | CA105: 117.5213675 | CG105: 2.115384615
L106: Home and Hospice Care | AH106: =SUMIF(Input!$IP$2:$IP$25001,1,Input!$AU$2:$AU$25001)/SUMIF(Input!$IP$2:$IP$25001,1,Input!$EQ$2:$EQ$25001) -> 0 | AN106: =SUMIF(Input!$IP$2:$IP$25001,1,Input!$AV$2:$AV$25001)/SUMIF(Input!$IP$2:$IP$25001,1,Input!$ER$2:$ER$25001) -> 0 | AT106: 0 | AZ106: 0 | BO106: =(SUMIF(Input!$IP$2:$IP$25001,1,Input!$CQ$2:$CQ$25001)/SUMIF(Input!$IP$2:$IP$25001,1,Input!$EQ$2:$EQ$25001))*12000 -> 0 | BU106: =(SUMIF(Input!$IP$2:$IP$25001,1,Input!$CR$2:$CR$25001)/SUMIF(Input!$IP$2:$IP$25001,1,Input!$ER$2:$ER$25001))*12000 -> 0 | CA106: 0
L107: Dialysis | AH107: =SUMIF(Input!$IP$2:$IP$25001,1,Input!$AW$2:$AW$25001)/SUMIF(Input!$IP$2:$IP$25001,1,Input!$EQ$2:$EQ$25001) -> 0 | AN107: =SUMIF(Input!$IP$2:$IP$25001,1,Input!$AX$2:$AX$25001)/SUMIF(Input!$IP$2:$IP$25001,1,Input!$ER$2:$ER$25001) -> 0 | AT107: 0 | AZ107: 0 | BO107: =(SUMIF(Input!$IP$2:$IP$25001,1,Input!$CS$2:$CS$25001)/SUMIF(Input!$IP$2:$IP$25001,1,Input!$EQ$2:$EQ$25001))*12000 -> 0 | BU107: =(SUMIF(Input!$IP$2:$IP$25001,1,Input!$CT$2:$CT$25001)/SUMIF(Input!$IP$2:$IP$25001,1,Input!$ER$2:$ER$25001))*12000 -> 0 | CA107: 0
L108: (Non CCBH) -Behavioral Health | AH108: =SUMIF(Input!$IP$2:$IP$25001,1,Input!$IV$2:$IV$25001)/SUMIF(Input!$IP$2:$IP$25001,1,Input!$EQ$2:$EQ$25001) -> 0 | AN108: =SUMIF(Input!$IP$2:$IP$25001,1,Input!$IW$2:$IW$25001)/SUMIF(Input!$IP$2:$IP$25001,1,Input!$ER$2:$ER$25001) -> 11.29673077 | AT108: 0.0295899925 | AZ108: 11.29673077 | BO108: =(SUMIF(Input!$IP$2:$IP$25001,1,Input!$IZ$2:$IZ$25001)/SUMIF(Input!$IP$2:$IP$25001,1,Input!$EQ$2:$EQ$25001))*12000 -> 0 | BU108: =(SUMIF(Input!$IP$2:$IP$25001,1,Input!$JA$2:$JA$25001)/SUMIF(Input!$IP$2:$IP$25001,1,Input!$ER$2:$ER$25001))*12000 -> 576.9230769 | CA108: 576.9230769
L109: Catastrophic (Shock) Claims | AH109: =SUMIF(Input!$IP$2:$IP$25001,1,Input!$BC$2:$BC$25001)/SUMIF(Input!$IP$2:$IP$25001,1,Input!$EQ$2:$EQ$25001) -> 0 | AN109: =SUMIF(Input!$IP$2:$IP$25001,1,Input!$BD$2:$BD$25001)/SUMIF(Input!$IP$2:$IP$25001,1,Input!$ER$2:$ER$25001) -> 0 | AT109: 0 | AZ109: 0 | BO109: =(SUMIF(Input!$IP$2:$IP$25001,1,Input!$CY$2:$CY$25001)/SUMIF(Input!$IP$2:$IP$25001,1,Input!$EQ$2:$EQ$25001))*12000 -> 0 | BU109: =(SUMIF(Input!$IP$2:$IP$25001,1,Input!$CZ$2:$CZ$25001)/SUMIF(Input!$IP$2:$IP$25001,1,Input!$ER$2:$ER$25001))*12000 -> 0 | CA109: 0 | CG109: =IFERROR(CA109/BO109,"") -> 
L110: Pharmacy | AH110: =BG52 -> 123.1580556 | AN110: =BQ52 -> 157.8382212 | AT110: 0.4134321581 | AZ110: 34.6801656 | BF110: 0.2815907205 | BO110: =(SUMIF(Input!$IP$2:$IP$25001,1,Input!$EE$2:$EE$25001)/SUMIF(Input!$IP$2:$IP$25001,1,Input!$EQ$2:$EQ$25001))*12000 -> 22722.22222 | BU110: =(SUMIF(Input!$IP$2:$IP$25001,1,Input!$EF$2:$EF$25001)/SUMIF(Input!$IP$2:$IP$25001,1,Input!$ER$2:$ER$25001))*12000 -> 23192.30769 | CA110: =BU110-BO110 -> 470.0854701 | CG110: =IFERROR(CA110/BO110,"") -> 0.0206883581
L111: Total Medical | AH111: =SUM(AH88:AM109) -> 81.63319444 | AN111: =SUM(AN88:AS109) -> 223.9371635 | AT111: 0.5865678419 | AZ111: 142.303969 | BF111: 1.74321206
L112: Total (Medical+Rx) | AH112: =SUM(AH88:AM110) -> 204.79125 | AN112: =SUM(AN88:AS110) -> 381.7753846 | AZ112: 176.9841346 | BF112: 0.8642172681
E116: Which specialists did the selected population utilize in Year 2?
L119: Specialty | Z119: Unique Members | AQ119: Total Spend | BH119: PMPM | BY119: % of Specialty PMPM
L121: ANESTHESIOLOGY | Z121: =SUMIF(Input!$IP$2:$IP$25001,1,Input!$KH$2:$KH$25001) -> 2 | AQ121: =SUMIF(Input!$IP$2:$IP$25001,1,Input!$GD$2:$GD$25001) -> 912.2 | BH121: =AQ121/SUMIF(Input!$IP$2:$IP$25001,1,Input!$ER$2:$ER$25001) -> 4.385576923 | BY121: =BH121/$BH$141 -> 0.2147950005
L122: ORTHO SURG | Z122: =SUMIF(Input!$IP$2:$IP$25001,1,Input!$KI$2:$KI$25001) -> 2 | AQ122: =SUMIF(Input!$IP$2:$IP$25001,1,Input!$GE$2:$GE$25001) -> 250.05 | BH122: =AQ122/SUMIF(Input!$IP$2:$IP$25001,1,Input!$ER$2:$ER$25001) -> 1.202163462 | BY122: =BH122/$BH$141 -> 0.05887907244
L123: OBGYN | Z123: =SUMIF(Input!$IP$2:$IP$25001,1,Input!$KJ$2:$KJ$25001) -> 2 | AQ123: =SUMIF(Input!$IP$2:$IP$25001,1,Input!$GF$2:$GF$25001) -> 82.5 | BH123: =AQ123/SUMIF(Input!$IP$2:$IP$25001,1,Input!$ER$2:$ER$25001) -> 0.3966346154 | BY123: 0.01942620866
L124: OTOLARYNGOLOGY | Z124: =SUMIF(Input!$IP$2:$IP$25001,1,Input!$KK$2:$KK$25001) -> 1 | AQ124: =SUMIF(Input!$IP$2:$IP$25001,1,Input!$GG$2:$GG$25001) -> 10.6 | BH124: =AQ124/SUMIF(Input!$IP$2:$IP$25001,1,Input!$ER$2:$ER$25001) -> 0.05096153846 | BY124: 0.002495973477
L125: ENDOCRINOLOGY | Z125: =SUMIF(Input!$IP$2:$IP$25001,1,Input!$KL$2:$KL$25001) -> 1 | AQ125: =SUMIF(Input!$IP$2:$IP$25001,1,Input!$GH$2:$GH$25001) -> 420.5 | BH125: =AQ125/SUMIF(Input!$IP$2:$IP$25001,1,Input!$ER$2:$ER$25001) -> 2.021634615 | BY125: 0.09901479688
L126: GASTROENTEROLOGY | Z126: =SUMIF(Input!$IP$2:$IP$25001,1,Input!$KM$2:$KM$25001) -> 2 | AQ126: =SUMIF(Input!$IP$2:$IP$25001,1,Input!$GI$2:$GI$25001) -> 565.74 | BH126: =AQ126/SUMIF(Input!$IP$2:$IP$25001,1,Input!$ER$2:$ER$25001) -> 2.719903846 | BY126: 0.1332143429
L127: CARDIOLOGY | Z127: =SUMIF(Input!$IP$2:$IP$25001,1,Input!$KN$2:$KN$25001) -> 1 | AQ127: =SUMIF(Input!$IP$2:$IP$25001,1,Input!$GJ$2:$GJ$25001) -> 20 | BH127: =AQ127/SUMIF(Input!$IP$2:$IP$25001,1,Input!$ER$2:$ER$25001) -> 0.09615384615 | BY127: 0.004709383918
L128: NEUROLOGY | Z128: =SUMIF(Input!$IP$2:$IP$25001,1,Input!$KO$2:$KO$25001) -> 0 | AQ128: =SUMIF(Input!$IP$2:$IP$25001,1,Input!$GK$2:$GK$25001) -> 0 | BH128: =AQ128/SUMIF(Input!$IP$2:$IP$25001,1,Input!$ER$2:$ER$25001) -> 0 | BY128: 0
L129: NEURO SURG | Z129: =SUMIF(Input!$IP$2:$IP$25001,1,Input!$KP$2:$KP$25001) -> 0 | AQ129: =SUMIF(Input!$IP$2:$IP$25001,1,Input!$GL$2:$GL$25001) -> 0 | BH129: =AQ129/SUMIF(Input!$IP$2:$IP$25001,1,Input!$ER$2:$ER$25001) -> 0 | BY129: 0
L130: ORAL MAXILLO SURG | Z130: =SUMIF(Input!$IP$2:$IP$25001,1,Input!$KQ$2:$KQ$25001) -> 1 | AQ130: =SUMIF(Input!$IP$2:$IP$25001,1,Input!$GM$2:$GM$25001) -> 857.87 | BH130: =AQ130/SUMIF(Input!$IP$2:$IP$25001,1,Input!$ER$2:$ER$25001) -> 4.124375 | BY130: 0.2020019591
L131: HEMO ONCOLOGY | Z131: =SUMIF(Input!$IP$2:$IP$25001,1,Input!$KR$2:$KR$25001) -> 0 | AQ131: =SUMIF(Input!$IP$2:$IP$25001,1,Input!$GN$2:$GN$25001) -> 0 | BH131: =AQ131/SUMIF(Input!$IP$2:$IP$25001,1,Input!$ER$2:$ER$25001) -> 0 | BY131: 0
L132: OPHTHALMOLOGY | Z132: =SUMIF(Input!$IP$2:$IP$25001,1,Input!$KS$2:$KS$25001) -> 0 | AQ132: =SUMIF(Input!$IP$2:$IP$25001,1,Input!$GO$2:$GO$25001) -> 0 | BH132: =AQ132/SUMIF(Input!$IP$2:$IP$25001,1,Input!$ER$2:$ER$25001) -> 0 | BY132: 0
L133: ALLERGY IMMUNE | Z133: =SUMIF(Input!$IP$2:$IP$25001,1,Input!$KT$2:$KT$25001) -> 2 | AQ133: =SUMIF(Input!$IP$2:$IP$25001,1,Input!$GP$2:$GP$25001) -> 345.46 | BH133: =AQ133/SUMIF(Input!$IP$2:$IP$25001,1,Input!$ER$2:$ER$25001) -> 1.660865385 | BY133: 0.08134518842
L134: SURGERY | Z134: =SUMIF(Input!$IP$2:$IP$25001,1,Input!$KU$2:$KU$25001) -> 1 | AQ134: =SUMIF(Input!$IP$2:$IP$25001,1,Input!$GQ$2:$GQ$25001) -> 259.88 | BH134: =AQ134/SUMIF(Input!$IP$2:$IP$25001,1,Input!$ER$2:$ER$25001) -> 1.249423077 | BY134: 0.06119373464
L135: PULMONOLOGY | Z135: =SUMIF(Input!$IP$2:$IP$25001,1,Input!$KV$2:$KV$25001) -> 0 | AQ135: =SUMIF(Input!$IP$2:$IP$25001,1,Input!$GR$2:$GR$25001) -> 0 | BH135: =AQ135/SUMIF(Input!$IP$2:$IP$25001,1,Input!$ER$2:$ER$25001) -> 0 | BY135: 0
L136: DERMATOLOGY | Z136: =SUMIF(Input!$IP$2:$IP$25001,1,Input!$KW$2:$KW$25001) -> 4 | AQ136: =SUMIF(Input!$IP$2:$IP$25001,1,Input!$GS$2:$GS$25001) -> 335.74 | BH136: =AQ136/SUMIF(Input!$IP$2:$IP$25001,1,Input!$ER$2:$ER$25001) -> 1.614134615 | BY136: 0.07905642784
L137: UROLOGY | Z137: =SUMIF(Input!$IP$2:$IP$25001,1,Input!$KX$2:$KX$25001) -> 1 | AQ137: =SUMIF(Input!$IP$2:$IP$25001,1,Input!$GT$2:$GT$25001) -> 40 | BH137: =AQ137/SUMIF(Input!$IP$2:$IP$25001,1,Input!$ER$2:$ER$25001) -> 0.1923076923 | BY137: 0.009418767837
L138: PLASTIC SURG | Z138: =SUMIF(Input!$IP$2:$IP$25001,1,Input!$KY$2:$KY$25001) -> 1 | AQ138: =SUMIF(Input!$IP$2:$IP$25001,1,Input!$GU$2:$GU$25001) -> 146.3 | BH138: =AQ138/SUMIF(Input!$IP$2:$IP$25001,1,Input!$ER$2:$ER$25001) -> 0.7033653846 | BY138: 0.03444914336
L139: NEPHROLOGY | Z139: =SUMIF(Input!$IP$2:$IP$25001,1,Input!$KZ$2:$KZ$25001) -> 0 | AQ139: =SUMIF(Input!$IP$2:$IP$25001,1,Input!$GV$2:$GV$25001) -> 0 | BH139: =AQ139/SUMIF(Input!$IP$2:$IP$25001,1,Input!$ER$2:$ER$25001) -> 0 | BY139: 0
L140: ALL OTHER SPECIALISTS | Z140: =SUMIF(Input!$IP$2:$IP$25001,1,Input!$LA$2:$LA$25001) -> 0 | AQ140: =SUMIF(Input!$IP$2:$IP$25001,1,Input!$GW$2:$GW$25001) -> 0 | BH140: =AQ140/SUMIF(Input!$IP$2:$IP$25001,1,Input!$ER$2:$ER$25001) -> 0 | BY140: 0
L141: Total | Z141: =SUMIF(Input!$IP$2:$IP$25001,1,Input!$LB$2:$LB$25001) -> 11 | AQ141: =SUM(AQ121:BD140) -> 4246.84 | BH141: =AQ141/SUMIF(Input!$IP$2:$IP$25001,1,Input!$ER$2:$ER$25001) -> 20.4175 | BY141: =SUM(BY121:CL140) -> 1
E144: What conditions affect the selected population?
J147: <=== Click "Refresh" to Update Conditions Data
C151: Condition | T151: Prevalence | AC151: Year 2 PMPM Spend | AO151: Year 2 Total Spend
B153: 1 | C153: =VLOOKUP(B153,Macro_Data!$AY$6:$AZ$42,2,FALSE) -> ASTHMA | T153: =VLOOKUP(B153,Macro_Data!$AY$6:$BA$42,3,FALSE) -> 16 | X153: =VLOOKUP(B153,Macro_Data!$AY$6:$BD$42,6,FALSE) -> 0.3333333333 | AC153: =VLOOKUP(B153,Macro_Data!$AY$6:$BB$42,4,FALSE) -> 6.063833922 | AO153: =VLOOKUP(B153,Macro_Data!$AY$6:$BC$42,5,FALSE) -> 3432.13
B154: 2 | C154: =VLOOKUP(B154,Macro_Data!$AY$6:$AZ$42,2,FALSE) -> DM | T154: =VLOOKUP(B154,Macro_Data!$AY$6:$BA$42,3,FALSE) -> 1 | X154: =VLOOKUP(B154,Macro_Data!$AY$6:$BD$42,6,FALSE) -> 0.02083333333 | AC154: =VLOOKUP(B154,Macro_Data!$AY$6:$BB$42,4,FALSE) -> 1.088904594 | AO154: =VLOOKUP(B154,Macro_Data!$AY$6:$BC$42,5,FALSE) -> 616.32
B155: 3 | C155: =VLOOKUP(B155,Macro_Data!$AY$6:$AZ$42,2,FALSE) -> SPINA BIFIDA SCI | T155: =VLOOKUP(B155,Macro_Data!$AY$6:$BA$42,3,FALSE) -> 0 | X155: =VLOOKUP(B155,Macro_Data!$AY$6:$BD$42,6,FALSE) -> 0 | AC155: =VLOOKUP(B155,Macro_Data!$AY$6:$BB$42,4,FALSE) -> 0 | AO155: =VLOOKUP(B155,Macro_Data!$AY$6:$BC$42,5,FALSE) -> 0
B156: 4 | C156: =VLOOKUP(B156,Macro_Data!$AY$6:$AZ$42,2,FALSE) -> NEOPLASM MALIGNANT | T156: =VLOOKUP(B156,Macro_Data!$AY$6:$BA$42,3,FALSE) -> 0 | X156: =VLOOKUP(B156,Macro_Data!$AY$6:$BD$42,6,FALSE) -> 0 | AC156: =VLOOKUP(B156,Macro_Data!$AY$6:$BB$42,4,FALSE) -> 0 | AO156: =VLOOKUP(B156,Macro_Data!$AY$6:$BC$42,5,FALSE) -> 0
B157: 5 | C157: =VLOOKUP(B157,Macro_Data!$AY$6:$AZ$42,2,FALSE) -> LUPUS CONN TISSUE DISORDERS | T157: =VLOOKUP(B157,Macro_Data!$AY$6:$BA$42,3,FALSE) -> 0 | X157: =VLOOKUP(B157,Macro_Data!$AY$6:$BD$42,6,FALSE) -> 0 | AC157: =VLOOKUP(B157,Macro_Data!$AY$6:$BB$42,4,FALSE) -> 0 | AO157: =VLOOKUP(B157,Macro_Data!$AY$6:$BC$42,5,FALSE) -> 0
B158: 6 | C158: =VLOOKUP(B158,Macro_Data!$AY$6:$AZ$42,2,FALSE) -> CENTRAL NERV SYS DISEASE | T158: =VLOOKUP(B158,Macro_Data!$AY$6:$BA$42,3,FALSE) -> 1 | X158: =VLOOKUP(B158,Macro_Data!$AY$6:$BD$42,6,FALSE) -> 0.02083333333 | AC158: =VLOOKUP(B158,Macro_Data!$AY$6:$BB$42,4,FALSE) -> 0 | AO158: =VLOOKUP(B158,Macro_Data!$AY$6:$BC$42,5,FALSE) -> 0
B159: 7 | C159: =VLOOKUP(B159,Macro_Data!$AY$6:$AZ$42,2,FALSE) -> PARALYSIS | T159: =VLOOKUP(B159,Macro_Data!$AY$6:$BA$42,3,FALSE) -> 0 | X159: =VLOOKUP(B159,Macro_Data!$AY$6:$BD$42,6,FALSE) -> 0 | AC159: =VLOOKUP(B159,Macro_Data!$AY$6:$BB$42,4,FALSE) -> 0 | AO159: =VLOOKUP(B159,Macro_Data!$AY$6:$BC$42,5,FALSE) -> 0
B160: 8 | C160: =VLOOKUP(B160,Macro_Data!$AY$6:$AZ$42,2,FALSE) -> CEREBRAL PALSY | T160: =VLOOKUP(B160,Macro_Data!$AY$6:$BA$42,3,FALSE) -> 1 | X160: =VLOOKUP(B160,Macro_Data!$AY$6:$BD$42,6,FALSE) -> 0.02083333333 | AC160: =VLOOKUP(B160,Macro_Data!$AY$6:$BB$42,4,FALSE) -> 0 | AO160: =VLOOKUP(B160,Macro_Data!$AY$6:$BC$42,5,FALSE) -> 0
B161: 9 | C161: =VLOOKUP(B161,Macro_Data!$AY$6:$AZ$42,2,FALSE) -> INFLAMMATORY BOWEL DISEASE | T161: =VLOOKUP(B161,Macro_Data!$AY$6:$BA$42,3,FALSE) -> 0 | X161: =VLOOKUP(B161,Macro_Data!$AY$6:$BD$42,6,FALSE) -> 0 | AC161: =VLOOKUP(B161,Macro_Data!$AY$6:$BB$42,4,FALSE) -> 0 | AO161: =VLOOKUP(B161,Macro_Data!$AY$6:$BC$42,5,FALSE) -> 0
B162: 10 | C162: =VLOOKUP(B162,Macro_Data!$AY$6:$AZ$42,2,FALSE) -> CEREBRO VASCULAR DISEASE | T162: =VLOOKUP(B162,Macro_Data!$AY$6:$BA$42,3,FALSE) -> 0 | X162: =VLOOKUP(B162,Macro_Data!$AY$6:$BD$42,6,FALSE) -> 0 | AC162: =VLOOKUP(B162,Macro_Data!$AY$6:$BB$42,4,FALSE) -> 0 | AO162: =VLOOKUP(B162,Macro_Data!$AY$6:$BC$42,5,FALSE) -> 0
B163: 11 | C163: =VLOOKUP(B163,Macro_Data!$AY$6:$AZ$42,2,FALSE) -> MORBID OBESITY | T163: =VLOOKUP(B163,Macro_Data!$AY$6:$BA$42,3,FALSE) -> 0 | X163: =VLOOKUP(B163,Macro_Data!$AY$6:$BD$42,6,FALSE) -> 0 | AC163: =VLOOKUP(B163,Macro_Data!$AY$6:$BB$42,4,FALSE) -> 0 | AO163: =VLOOKUP(B163,Macro_Data!$AY$6:$BC$42,5,FALSE) -> 0
B164: 12 | C164: =VLOOKUP(B164,Macro_Data!$AY$6:$AZ$42,2,FALSE) -> CHF | T164: =VLOOKUP(B164,Macro_Data!$AY$6:$BA$42,3,FALSE) -> 0 | X164: =VLOOKUP(B164,Macro_Data!$AY$6:$BD$42,6,FALSE) -> 0 | AC164: =VLOOKUP(B164,Macro_Data!$AY$6:$BB$42,4,FALSE) -> 0 | AO164: =VLOOKUP(B164,Macro_Data!$AY$6:$BC$42,5,FALSE) -> 0
B165: 13 | C165: =VLOOKUP(B165,Macro_Data!$AY$6:$AZ$42,2,FALSE) -> OSTEOPOROSIS | T165: =VLOOKUP(B165,Macro_Data!$AY$6:$BA$42,3,FALSE) -> 0 | X165: =VLOOKUP(B165,Macro_Data!$AY$6:$BD$42,6,FALSE) -> 0 | AC165: =VLOOKUP(B165,Macro_Data!$AY$6:$BB$42,4,FALSE) -> 0 | AO165: =VLOOKUP(B165,Macro_Data!$AY$6:$BC$42,5,FALSE) -> 0
B166: 14 | C166: =VLOOKUP(B166,Macro_Data!$AY$6:$AZ$42,2,FALSE) -> CHRONIC HEPATITIS | T166: =VLOOKUP(B166,Macro_Data!$AY$6:$BA$42,3,FALSE) -> 0 | X166: =VLOOKUP(B166,Macro_Data!$AY$6:$BD$42,6,FALSE) -> 0 | AC166: =VLOOKUP(B166,Macro_Data!$AY$6:$BB$42,4,FALSE) -> 0 | AO166: =VLOOKUP(B166,Macro_Data!$AY$6:$BC$42,5,FALSE) -> 0
B167: 15 | C167: =VLOOKUP(B167,Macro_Data!$AY$6:$AZ$42,2,FALSE) -> RENAL DISEASE | T167: =VLOOKUP(B167,Macro_Data!$AY$6:$BA$42,3,FALSE) -> 0 | X167: =VLOOKUP(B167,Macro_Data!$AY$6:$BD$42,6,FALSE) -> 0 | AC167: =VLOOKUP(B167,Macro_Data!$AY$6:$BB$42,4,FALSE) -> 0 | AO167: =VLOOKUP(B167,Macro_Data!$AY$6:$BC$42,5,FALSE) -> 0
B168: 16 | C168: =VLOOKUP(B168,Macro_Data!$AY$6:$AZ$42,2,FALSE) -> COAGULATION DEFECTS | T168: =VLOOKUP(B168,Macro_Data!$AY$6:$BA$42,3,FALSE) -> 0 | X168: =VLOOKUP(B168,Macro_Data!$AY$6:$BD$42,6,FALSE) -> 0 | AC168: =VLOOKUP(B168,Macro_Data!$AY$6:$BB$42,4,FALSE) -> 0 | AO168: =VLOOKUP(B168,Macro_Data!$AY$6:$BC$42,5,FALSE) -> 0
B169: 17 | C169: =VLOOKUP(B169,Macro_Data!$AY$6:$AZ$42,2,FALSE) -> ATRIAL FIBRILLATION | T169: =VLOOKUP(B169,Macro_Data!$AY$6:$BA$42,3,FALSE) -> 0 | X169: =VLOOKUP(B169,Macro_Data!$AY$6:$BD$42,6,FALSE) -> 0 | AC169: =VLOOKUP(B169,Macro_Data!$AY$6:$BB$42,4,FALSE) -> 0 | AO169: =VLOOKUP(B169,Macro_Data!$AY$6:$BC$42,5,FALSE) -> 0
B170: 18 | C170: =VLOOKUP(B170,Macro_Data!$AY$6:$AZ$42,2,FALSE) -> COPD | T170: =VLOOKUP(B170,Macro_Data!$AY$6:$BA$42,3,FALSE) -> 0 | X170: =VLOOKUP(B170,Macro_Data!$AY$6:$BD$42,6,FALSE) -> 0 | AC170: =VLOOKUP(B170,Macro_Data!$AY$6:$BB$42,4,FALSE) -> 0 | AO170: =VLOOKUP(B170,Macro_Data!$AY$6:$BC$42,5,FALSE) -> 0
B171: 19 | C171: =VLOOKUP(B171,Macro_Data!$AY$6:$AZ$42,2,FALSE) -> LIVER DISEASE | T171: =VLOOKUP(B171,Macro_Data!$AY$6:$BA$42,3,FALSE) -> 0 | X171: =VLOOKUP(B171,Macro_Data!$AY$6:$BD$42,6,FALSE) -> 0 | AC171: =VLOOKUP(B171,Macro_Data!$AY$6:$BB$42,4,FALSE) -> 0 | AO171: =VLOOKUP(B171,Macro_Data!$AY$6:$BC$42,5,FALSE) -> 0
B172: 20 | C172: =VLOOKUP(B172,Macro_Data!$AY$6:$AZ$42,2,FALSE) -> CYSTIC FIBROSIS | T172: =VLOOKUP(B172,Macro_Data!$AY$6:$BA$42,3,FALSE) -> 0 | X172: =VLOOKUP(B172,Macro_Data!$AY$6:$BD$42,6,FALSE) -> 0 | AC172: =VLOOKUP(B172,Macro_Data!$AY$6:$BB$42,4,FALSE) -> 0 | AO172: =VLOOKUP(B172,Macro_Data!$AY$6:$BC$42,5,FALSE) -> 0
B173: 21 | C173: =VLOOKUP(B173,Macro_Data!$AY$6:$AZ$42,2,FALSE) -> MIGRAINE | T173: =VLOOKUP(B173,Macro_Data!$AY$6:$BA$42,3,FALSE) -> 1 | X173: =VLOOKUP(B173,Macro_Data!$AY$6:$BD$42,6,FALSE) -> 0.02083333333 | AC173: =VLOOKUP(B173,Macro_Data!$AY$6:$BB$42,4,FALSE) -> 0 | AO173: =VLOOKUP(B173,Macro_Data!$AY$6:$BC$42,5,FALSE) -> 0
B174: 22 | C174: =VLOOKUP(B174,Macro_Data!$AY$6:$AZ$42,2,FALSE) -> MULTIPLE SCLEROSIS | T174: =VLOOKUP(B174,Macro_Data!$AY$6:$BA$42,3,FALSE) -> 0 | X174: =VLOOKUP(B174,Macro_Data!$AY$6:$BD$42,6,FALSE) -> 0 | AC174: =VLOOKUP(B174,Macro_Data!$AY$6:$BB$42,4,FALSE) -> 0 | AO174: =VLOOKUP(B174,Macro_Data!$AY$6:$BC$42,5,FALSE) -> 0
B175: 23 | C175: =VLOOKUP(B175,Macro_Data!$AY$6:$AZ$42,2,FALSE) -> CAD | T175: =VLOOKUP(B175,Macro_Data!$AY$6:$BA$42,3,FALSE) -> 0 | X175: =VLOOKUP(B175,Macro_Data!$AY$6:$BD$42,6,FALSE) -> 0 | AC175: =VLOOKUP(B175,Macro_Data!$AY$6:$BB$42,4,FALSE) -> 0 | AO175: =VLOOKUP(B175,Macro_Data!$AY$6:$BC$42,5,FALSE) -> 0
B176: 24 | C176: =VLOOKUP(B176,Macro_Data!$AY$6:$AZ$42,2,FALSE) -> MUSCULAR DYSTROPHY | T176: =VLOOKUP(B176,Macro_Data!$AY$6:$BA$42,3,FALSE) -> 0 | X176: =VLOOKUP(B176,Macro_Data!$AY$6:$BD$42,6,FALSE) -> 0 | AC176: =VLOOKUP(B176,Macro_Data!$AY$6:$BB$42,4,FALSE) -> 0 | AO176: =VLOOKUP(B176,Macro_Data!$AY$6:$BC$42,5,FALSE) -> 0
B177: 25 | C177: =VLOOKUP(B177,Macro_Data!$AY$6:$AZ$42,2,FALSE) -> MYASTHENIA GRAVIS | T177: =VLOOKUP(B177,Macro_Data!$AY$6:$BA$42,3,FALSE) -> 0 | X177: =VLOOKUP(B177,Macro_Data!$AY$6:$BD$42,6,FALSE) -> 0 | AC177: =VLOOKUP(B177,Macro_Data!$AY$6:$BB$42,4,FALSE) -> 0 | AO177: =VLOOKUP(B177,Macro_Data!$AY$6:$BC$42,5,FALSE) -> 0
B178: 26 | C178: =VLOOKUP(B178,Macro_Data!$AY$6:$AZ$42,2,FALSE) -> EPILEPSY | T178: =VLOOKUP(B178,Macro_Data!$AY$6:$BA$42,3,FALSE) -> 1 | X178: =VLOOKUP(B178,Macro_Data!$AY$6:$BD$42,6,FALSE) -> 0.02083333333 | AC178: =VLOOKUP(B178,Macro_Data!$AY$6:$BB$42,4,FALSE) -> 0 | AO178: =VLOOKUP(B178,Macro_Data!$AY$6:$BC$42,5,FALSE) -> 0
B179: 27 | C179: =VLOOKUP(B179,Macro_Data!$AY$6:$AZ$42,2,FALSE) -> OSTEOARTHRITIS | T179: =VLOOKUP(B179,Macro_Data!$AY$6:$BA$42,3,FALSE) -> 0 | X179: =VLOOKUP(B179,Macro_Data!$AY$6:$BD$42,6,FALSE) -> 0 | AC179: =VLOOKUP(B179,Macro_Data!$AY$6:$BB$42,4,FALSE) -> 0 | AO179: =VLOOKUP(B179,Macro_Data!$AY$6:$BC$42,5,FALSE) -> 0
B180: 28 | C180: =VLOOKUP(B180,Macro_Data!$AY$6:$AZ$42,2,FALSE) -> ESRD | T180: =VLOOKUP(B180,Macro_Data!$AY$6:$BA$42,3,FALSE) -> 0 | X180: =VLOOKUP(B180,Macro_Data!$AY$6:$BD$42,6,FALSE) -> 0 | AC180: =VLOOKUP(B180,Macro_Data!$AY$6:$BB$42,4,FALSE) -> 0 | AO180: =VLOOKUP(B180,Macro_Data!$AY$6:$BC$42,5,FALSE) -> 0
B181: 29 | C181: =VLOOKUP(B181,Macro_Data!$AY$6:$AZ$42,2,FALSE) -> PANCREATITIS CHRONIC | T181: =VLOOKUP(B181,Macro_Data!$AY$6:$BA$42,3,FALSE) -> 0 | X181: =VLOOKUP(B181,Macro_Data!$AY$6:$BD$42,6,FALSE) -> 0 | AC181: =VLOOKUP(B181,Macro_Data!$AY$6:$BB$42,4,FALSE) -> 0 | AO181: =VLOOKUP(B181,Macro_Data!$AY$6:$BC$42,5,FALSE) -> 0
B182: 30 | C182: =VLOOKUP(B182,Macro_Data!$AY$6:$AZ$42,2,FALSE) -> HEMATOLOGICAL SICKLE CELL | T182: =VLOOKUP(B182,Macro_Data!$AY$6:$BA$42,3,FALSE) -> 0 | X182: =VLOOKUP(B182,Macro_Data!$AY$6:$BD$42,6,FALSE) -> 0 | AC182: =VLOOKUP(B182,Macro_Data!$AY$6:$BB$42,4,FALSE) -> 0 | AO182: =VLOOKUP(B182,Macro_Data!$AY$6:$BC$42,5,FALSE) -> 0
B183: 31 | C183: =VLOOKUP(B183,Macro_Data!$AY$6:$AZ$42,2,FALSE) -> PARKINSONS DISEASE | T183: =VLOOKUP(B183,Macro_Data!$AY$6:$BA$42,3,FALSE) -> 0 | X183: =VLOOKUP(B183,Macro_Data!$AY$6:$BD$42,6,FALSE) -> 0 | AC183: =VLOOKUP(B183,Macro_Data!$AY$6:$BB$42,4,FALSE) -> 0 | AO183: =VLOOKUP(B183,Macro_Data!$AY$6:$BC$42,5,FALSE) -> 0
B184: 32 | C184: =VLOOKUP(B184,Macro_Data!$AY$6:$AZ$42,2,FALSE) -> HIV | T184: =VLOOKUP(B184,Macro_Data!$AY$6:$BA$42,3,FALSE) -> 0 | X184: =VLOOKUP(B184,Macro_Data!$AY$6:$BD$42,6,FALSE) -> 0 | AC184: =VLOOKUP(B184,Macro_Data!$AY$6:$BB$42,4,FALSE) -> 0 | AO184: =VLOOKUP(B184,Macro_Data!$AY$6:$BC$42,5,FALSE) -> 0
B185: 33 | C185: =VLOOKUP(B185,Macro_Data!$AY$6:$AZ$42,2,FALSE) -> RHEUMA ARTHRITIS | T185: =VLOOKUP(B185,Macro_Data!$AY$6:$BA$42,3,FALSE) -> 1 | X185: =VLOOKUP(B185,Macro_Data!$AY$6:$BD$42,6,FALSE) -> 0.02083333333 | AC185: =VLOOKUP(B185,Macro_Data!$AY$6:$BB$42,4,FALSE) -> 0 | AO185: =VLOOKUP(B185,Macro_Data!$AY$6:$BC$42,5,FALSE) -> 0
B186: 34 | C186: =VLOOKUP(B186,Macro_Data!$AY$6:$AZ$42,2,FALSE) -> HYPERLIPIDEMIA | T186: =VLOOKUP(B186,Macro_Data!$AY$6:$BA$42,3,FALSE) -> 0 | X186: =VLOOKUP(B186,Macro_Data!$AY$6:$BD$42,6,FALSE) -> 0 | AC186: =VLOOKUP(B186,Macro_Data!$AY$6:$BB$42,4,FALSE) -> 0 | AO186: =VLOOKUP(B186,Macro_Data!$AY$6:$BC$42,5,FALSE) -> 0
B187: 35 | C187: =VLOOKUP(B187,Macro_Data!$AY$6:$AZ$42,2,FALSE) -> TRANSPLANT | T187: =VLOOKUP(B187,Macro_Data!$AY$6:$BA$42,3,FALSE) -> 0 | X187: =VLOOKUP(B187,Macro_Data!$AY$6:$BD$42,6,FALSE) -> 0 | AC187: =VLOOKUP(B187,Macro_Data!$AY$6:$BB$42,4,FALSE) -> 0 | AO187: =VLOOKUP(B187,Macro_Data!$AY$6:$BC$42,5,FALSE) -> 0
B188: 36 | C188: =VLOOKUP(B188,Macro_Data!$AY$6:$AZ$42,2,FALSE) -> HYPERTENSION | T188: =VLOOKUP(B188,Macro_Data!$AY$6:$BA$42,3,FALSE) -> 1 | X188: =VLOOKUP(B188,Macro_Data!$AY$6:$BD$42,6,FALSE) -> 0.02083333333 | AC188: =VLOOKUP(B188,Macro_Data!$AY$6:$BB$42,4,FALSE) -> 0 | AO188: =VLOOKUP(B188,Macro_Data!$AY$6:$BC$42,5,FALSE) -> 0
B189: 37 | C189: =VLOOKUP(B189,Macro_Data!$AY$6:$AZ$42,2,FALSE) -> IMMUNE DEFICIENCY | T189: =VLOOKUP(B189,Macro_Data!$AY$6:$BA$42,3,FALSE) -> 0 | X189: =VLOOKUP(B189,Macro_Data!$AY$6:$BD$42,6,FALSE) -> 0 | AC189: =VLOOKUP(B189,Macro_Data!$AY$6:$BB$42,4,FALSE) -> 0 | AO189: =VLOOKUP(B189,Macro_Data!$AY$6:$BC$42,5,FALSE) -> 0

Sheet Update Preparations
A1: RWJF Population Model -- Preparing the Tool for Data Updates
A2: See the separate Usage Instructions document for comprehensive list of update preparations.
A4: › Before you begin making any changes to this tool, be sure to save a new copy.
A5: › Be sure to prepare your data so that it is in the same order as the existing columns on the Inputs tab.
A6: › Clear the existing data by clicking the Clear Input Tab button to the right
A7: › Paste your data as values into the Input tab
A8: › Modify the formula in column IS and associated drop down menu only if necessary -- see page 3 of the Instructions for more detail
A9: › Update the RWJF Population Model tab to reflect your specific data set, time periods, etc.
A10: › Protect and/or hide all worksheets excep the RWJF Population Model worksheet

Sheet Data Dictionary
A1: RWJF Population Model -- Data Dictionary
A3: Field Name | B3: Data Type | C3: Definition
A4: UNIQUE_ID | B4: text | C4: unique member identifier
A5: BIRTH_DATE | B5: date | C5: Member date of birth
A6: AGE | B6: number (0 decimals) | C6: Member age
A7: GENDER_CODE | B7: text | C7: Member gender
A8: LOB | B8: text | C8: Member line of business (Medicaid, Medicare, etc.)
A9: COUNTY | B9: text | C9: Member county of residence
A10: MEDICAL_HOME_SITE_ID | B10: text | C10: Medical home (or primary care physician) ID associated with the member
A11: GroupA_IND | B11: number (0 decimals) | C11: Flag for members in "Group A" (1 = yes, 0 = no)
A12: MED_SURG_PGA_2010 | B12: accounting | C12: All Inpatient medical/surgical (including ancillary) - total $ paid by the health plan in 2010
A13: MED_SURG_PGA_2011 | B13: accounting | C13: All Inpatient medical/surgical (including ancillary) - total $ paid by the health plan in 2011
A14: REHAB_PGA_2010 | B14: accounting | C14: All Inpatient facility rehabilitation services (including ancillary) - total $ paid by the health plan in 2010
A15: REHAB_PGA_2011 | B15: accounting | C15: All Inpatient facility rehabilitation services (including ancillary) - total $ paid by the health plan in 2011
A16: SNF_PGA_2010 | B16: accounting | C16: All Inpatient facility skilled nursing services (including ancillary) - total $ paid by the health plan in 2010
A17: SNF_PGA_2011 | B17: accounting | C17: All Inpatient facility skilled nursing services (including ancillary) - total $ paid by the health plan in 2011
A18: OTHER_IP_PGA_2010 | B18: accounting | C18: Other inpatient services, including pregnancy/newborn/NICU services (including ancillary) - total $ paid by the health plan in 2010
A19: OTHER_IP_PGA_2011 | B19: accounting | C19: Other inpatient services, including pregnancy/newborn/NICU services (including ancillary) - total $ paid by the health plan in 2011
A20: OBS_PGA_2010 | B20: accounting | C20: All facility outpatient observations services - total $ paid by the health plan in 2010
A21: OBS_PGA_2011 | B21: accounting | C21: All facility observations services - total $ paid by the health plan in 2011
A22: ER_PGA_2010 | B22: accounting | C22: Facility and professional emergency room services - total $ paid by the health plan in 2010
A23: ER_PGA_2011 | B23: accounting | C23: Facility and professional emergency room services - total $ paid by the health plan in 2011
A24: OP_SURG_PGA_2010 | B24: accounting | C24: All outpatient facility services provided in the surgery setting (including ancillary) and/or at ambulatory surgical centers - total $ paid by the health plan in 2010
A25: OP_SURG_PGA_2011 | B25: accounting | C25: All outpatient facility services provided in the surgery setting (including ancillary) and/or at ambulatory surgical centers - total $ paid by the health plan in 2011
A26: OP_FAC_OTHER_PGA_2010 | B26: accounting | C26: Other outpatient facility services (including services at urgent care, retail and other clinics) - total $ paid by the health plan in 2010
A27: OP_FAC_OTHER_PGA_2011 | B27: accounting | C27: Other outpatient facility services (including services at urgent care, retail and other clinics) - total $ paid by the health plan in 2011
A28: THERAPY_PGA_2010 | B28: accounting | C28: All facility and professional services for physical, occupational, speech and other therapy - total $ paid by the health plan in 2010
A29: THERAPY_PGA_2011 | B29: accounting | C29: All facility and professional services for physical, occupational, speech and other therapy - total $ paid by the health plan in 2011
A30: LAB_PGA_2010 | B30: accounting | C30: All facility and professional diagnostic lab and pathology services - total $ paid by the health plan in 2010
A31: LAB_PGA_2011 | B31: accounting | C31: All facility and professional diagnostic lab and pathology services - total $ paid by the health plan in 2011
A32: HIGH_TECH_PGA_2010 | B32: accounting | C32: All facility and professional high rech radiology services (MRI,CT, PET, and advanced cardiac imaging) - total $ paid by the health plan in 2010
A33: HIGH_TECH_PGA_2011 | B33: accounting | C33: All facility and professional high rech radiology services (MRI,CT, PET, and advanced cardiac imaging) - total $ paid by the health plan in 2011
A34: LOW_TECH_PGA_2010 | B34: accounting | C34: All facility and professional low tech radiology services (not otherwise specified as high tech or radiation therapy) - total $ paid by the health plan in 2010
A35: LOW_TECH_PGA_2011 | B35: accounting | C35: All facility and professional low tech radiology services (not otherwise specified as high tech or radiation therapy) - total $ paid by the health plan in 2011
A36: RADIATION_PGA_2010 | B36: accounting | C36: All facility and professional radiation therapy services. Does not include services performed in Inpatient, ER, Urgent Care, Retail clinic, or Amb Surg - total $ paid by the health plan in 2010
A37: RADIATION_PGA_2011 | B37: accounting | C37: All facility and professional radiation therapy services. Does not include services performed in Inpatient, ER, Urgent Care, Retail clinic, or Amb Surg - total $ paid by the health plan in 2011
A38: PCP_PGA_2010 | B38: accounting | C38: All Professional services by PCP with Internal medicine speciality (excluding services desgnated as well services) - total $ paid by the health plan in 2010
A39: PCP_PGA_2011 | B39: accounting | C39: All Professional services by PCP with Internal medicine speciality (excluding services desgnated as well services) - total $ paid by the health plan in 2011
A40: SPECIALIST_PGA_2010 | B40: accounting | C40: All specialist services (excludes services with a behavioral Health Dx, therapy services, Diagnostic services, Drug admin services, and medical supply-related services) - total $ paid by the health plan in 2010
A41: SPECIALIST_PGA_2011 | B41: accounting | C41: All specialist services (excludes services with a behavioral Health Dx, therapy services, Diagnostic services, Drug admin services, and medical supply-related services) - total $ paid by the health plan in 2011
A42: DME_PGA_2010 | B42: accounting | C42: Durable medical equipment - total $ paid by the health plan in 2010
A43: DME_PGA_2011 | B43: accounting | C43: Durable medical equipment - total $ paid by the health plan in 2011
A44: MED_SUPPLY_PGA_2010 | B44: accounting | C44: Medical supplies - total $ paid by the health plan in 2010
A45: MED_SUPPLY_PGA_2011 | B45: accounting | C45: Medical supplies - total $ paid by the health plan in 2011
A46: MED_TRANSPORT_PGA_2010 | B46: accounting | C46: Medical transportation - total $ paid by the health plan in 2010
A47: MED_TRANSPORT_PGA_2011 | B47: accounting | C47: Medical transportation - total $ paid by the health plan in 2011
A48: INJECTABLE_PGA_2010 | B48: accounting | C48: Injectable drugs - total $ paid by the health plan in 2010
A49: INJECTABLE_PGA_2011 | B49: accounting | C49: Injectable drugs - total $ paid by the health plan in 2011
A50: HOME_HOSP_PGA_2010 | B50: accounting | C50: In-home and hospice services - total $ paid by the health plan in 2010
A51: HOME_HOSP_PGA_2011 | B51: accounting | C51: In-home and hospice services - total $ paid by the health plan in 2011
A52: DIALYSIS_PGA_2010 | B52: accounting | C52: Dialysis (Excludes services provided in Inpatient, ER, Urgent Care, Retail Clinic, and Amb surg) - total $ paid by the health plan in 2010
A53: DIALYSIS_PGA_2011 | B53: accounting | C53: Dialysis (Excludes services provided in Inpatient, ER, Urgent Care, Retail Clinic, and Amb surg) - total $ paid by the health plan in 2011
A54: BH_IP_PGA_2010 | B54: accounting | C54: All Inpatient facility services for Mental Health diagnoses, chemical dependency rehab/detox (including ancillary services) - total $ paid by the health plan in 2010 -- the majority of behavioral health claims are carved out and captured in TOTAL_BH_2010 -- all 2010 inpatient behavioral health costs to be reflected in the model should be included here
A55: BH_IP_PGA_2011 | B55: accounting | C55: All Inpatient facility services for Mental Health diagnoses, chemical dependency rehab/detox (including ancillary services) - total $ paid by the health plan in 2011 -- the majority of behavioral health claims are carved out and captured in TOTAL_BH_2011 -- all 2011 inpatient behavioral health costs to be reflected in the model should be included here
A56: BH_OP_PGA_2010 | B56: accounting | C56: All outpatient facility and professional services for mental health/drug and alcohol/psychiatric services - total $ paid by the health plan in 2010 -- the majority of behavioral health claims are carved out and captured in TOTAL_BH_2010 -- all 2010 inpatient behavioral health costs to be reflected in the model should be included here
A57: BH_OP_PGA_2011 | B57: accounting | C57: All outpatient facility and professional services for mental health/drug and alcohol/psychiatric services - total $ paid by the health plan in 2011 -- the majority of behavioral health claims are carved out and captured in TOTAL_BH_2011 -- all 2011 inpatient behavioral health costs to be reflected in the model should be included here
A58: SHOCK_PGA_2010 | B58: accounting | C58: Shock claims - total $ paid by the health plan in 2010
A59: SHOCK_PGA_2011 | B59: accounting | C59: Shock claims - total $ paid by the health plan in 2011
A60: MED_SURG_ADMITS_2010 | B60: number (0 decimals) | C60: # of medical/surgical admissions in 2010
A61: MED_SURG_ADMITS_2011 | B61: number (0 decimals) | C61: # of medical/surgical admissions in 2011
A62: REHAB_ADMITS_2010 | B62: number (0 decimals) | C62: # of rehabilitation admissions in 2010
A63: REHAB_ADMITS_2011 | B63: number (0 decimals) | C63: # of rehabilitation admissions in 2011
A64: SNF_ADMITS_2010 | B64: number (0 decimals) | C64: # of skilled nursing facility admissions in 2010
A65: SNF_ADMITS_2011 | B65: number (0 decimals) | C65: # of skilled nursing facility admissions in 2011
A66: OTHER_IP_ADMITS_2010 | B66: number (0 decimals) | C66: # of other inpatient (including pregnancy/newborn/NICU services) admissions in 2010
A67: OTHER_IP_ADMITS_2011 | B67: number (0 decimals) | C67: # of other inpatient (including pregnancy/newborn/NICU services) admissions in 2011
A68: OBS_CLAIMS_2010 | B68: number (0 decimals) | C68: # of outpatient observations claims in 2010
A69: OBS_CLAIMS_2011 | B69: number (0 decimals) | C69: # of outpatient observations claims in 2011
A70: ER_CLAIMS_2010 | B70: number (0 decimals) | C70: # of claims in an emergency room setting in 2010
A71: ER_CLAIMS_2011 | B71: number (0 decimals) | C71: # of claims in an emergency room setting in 2011
A72: OP_SURG_CLAIMS_2010 | B72: number (0 decimals) | C72: # of outpatient surgical claims (in surgery setting or at ambulatory surgical centers) in 2010
A73: OP_SURG_CLAIMS_2011 | B73: number (0 decimals) | C73: # of outpatient surgical claims (in surgery setting or at ambulatory surgical centers) in 2011
A74: OP_FAC_OTHER_CLAIMS_2010 | B74: number (0 decimals) | C74: # of other outpatient facility claims (including urgent care, retail and other clinics) in 2010
A75: OP_FAC_OTHER_CLAIMS_2011 | B75: number (0 decimals) | C75: # of other outpatient facility claims (including urgent care, retail and other clinics) in 2011
A76: THERAPY_CLAIMS_2010 | B76: number (0 decimals) | C76: # of Physical, occupational, speech and other therapy claims in 2010
A77: THERAPY_CLAIMS_2011 | B77: number (0 decimals) | C77: # of Physical, occupational, speech and other therapy claims in 2011
A78: LAB_CLAIMS_2010 | B78: number (0 decimals) | C78: # of facility lab and pathology claims in 2010
A79: LAB_CLAIMS_2011 | B79: number (0 decimals) | C79: # of facility lab and pathology claims in 2011
A80: HIGH_TECH_CLAIMS_2010 | B80: number (0 decimals) | C80: # of high tech radiology (MRI,CT, PET, and advanced cardiac imaging) claims in 2010
A81: HIGH_TECH_CLAIMS_2011 | B81: number (0 decimals) | C81: # of high tech radiology (MRI,CT, PET, and advanced cardiac imaging) claims in 2011
A82: LOW_TECH_CLAIMS_2010 | B82: number (0 decimals) | C82: # of low tech radiology (not otherwise specified as high tech or radiation therapy) claims in 2010
A83: LOW_TECH_CLAIMS_2011 | B83: number (0 decimals) | C83: # of low tech radiology (not otherwise specified as high tech or radiation therapy) claims in 2011
A84: RADIATION_CLAIMS_2010 | B84: number (0 decimals) | C84: # of radiation therapy claims in 2010. Does not include services performed in Inpatient, ER, Urgent Care, Retail clinic, or Amb Surg.
A85: RADIATION_CLAIMS_2011 | B85: number (0 decimals) | C85: # of radiation therapy claims in 2011. Does not include services performed in Inpatient, ER, Urgent Care, Retail clinic, or Amb Surg.
A86: PCP_CLAIMS_2010 | B86: number (0 decimals) | C86: # of PCP with Internal medicine speciality claims in 2010 (excluding services desgnated as well services)
A87: PCP_CLAIMS_2011 | B87: number (0 decimals) | C87: # of primary care claims in 2011 (excluding services desgnated as well services)
A88: SPECIALIST_CLAIMS_2010 | B88: number (0 decimals) | C88: # of specialist claims in 2010. Excludes services with a behavioral Health Dx, therapy services, Diagnostic services, Drug admin services, and medical supply-related services
A89: SPECIALIST_CLAIMS_2011 | B89: number (0 decimals) | C89: # of specialist claims in 2011. Excludes services with a behavioral Health Dx, therapy services, Diagnostic services, Drug admin services, and medical supply-related services
A90: DME_CLAIMS_2010 | B90: number (0 decimals) | C90: # of durable medical equipment claims in 2010
A91: DME_CLAIMS_2011 | B91: number (0 decimals) | C91: # of durable medical equipment claims in 2011
A92: MED_SUPPLY_CLAIMS_2010 | B92: number (0 decimals) | C92: # of medical supply claims in 2010
A93: MED_SUPPLY_CLAIMS_2011 | B93: number (0 decimals) | C93: # of medical supply claims in 2011
A94: MED_TRANSPORT_CLAIMS_2010 | B94: number (0 decimals) | C94: # of medical transportation claims in 2010
A95: MED_TRANSPORT_CLAIMS_2011 | B95: number (0 decimals) | C95: # of medical transportation claims in 2011
A96: INJECTABLE_CLAIMS_2010 | B96: number (0 decimals) | C96: # of injectable drug claims in 2010
A97: INJECTABLE_CLAIMS_2011 | B97: number (0 decimals) | C97: # of injectable drug claims in 2011
A98: HOME_HOSP_CLAIMS_2010 | B98: number (0 decimals) | C98: # of in-home and hospice claims in 2010
A99: HOME_HOSP_CLAIMS_2011 | B99: number (0 decimals) | C99: # of in-home and hospice claims in 2011
A100: DIALYSIS_CLAIMS_2010 | B100: number (0 decimals) | C100: # of dialysis claims in 2010. Excludes services provided in Inpatient, ER, Urgent Care, Retail Clinic, and Amb surg
A101: DIALYSIS_CLAIMS_2011 | B101: number (0 decimals) | C101: # of dialysis claims in 2011. Excludes services provided in Inpatient, ER, Urgent Care, Retail Clinic, and Amb surg
A102: BH_IP_ADMITS_2010 | B102: number (0 decimals) | C102: # of inpatient behavioral health admits (mental health diagnoses, chemical dependency rehab/detox) in 2010
A103: BH_IP_ADMITS_2011 | B103: number (0 decimals) | C103: # of inpatient behavioral health admits (mental health diagnoses, chemical dependency rehab/detox) in 2011
A104: BH_OP_CLAIMS_2010 | B104: number (0 decimals) | C104: # of outpatient behavioral health claims (mental health/drug and alcohol/psychiatric services) in 2010
A105: BH_OP_CLAIMS_2011 | B105: number (0 decimals) | C105: # of outpatient behavioral health claims (mental health/drug and alcohol/psychiatric services) in 2011
A106: SHOCK_CLAIMS_2010 | B106: number (0 decimals) | C106: # of shock claims in 2010
A107: SHOCK_CLAIMS_2011 | B107: number (0 decimals) | C107: # of shock claims in 2011
A108: PAID_201001 | B108: accounting | C108: Total $ paid by the health plan in January 2010
A109: PAID_201002 | B109: accounting | C109: Total $ paid by the health plan in February 2010
A110: PAID_201003 | B110: accounting | C110: Total $ paid by the health plan in March 2010
A111: PAID_201004 | B111: accounting | C111: Total $ paid by the health plan in April 2010
A112: PAID_201005 | B112: accounting | C112: Total $ paid by the health plan in May 2010
A113: PAID_201006 | B113: accounting | C113: Total $ paid by the health plan in June 2010
A114: PAID_201007 | B114: accounting | C114: Total $ paid by the health plan in July 2010
A115: PAID_201008 | B115: accounting | C115: Total $ paid by the health plan in August 2010
A116: PAID_201009 | B116: accounting | C116: Total $ paid by the health plan in September 2010
A117: PAID_201010 | B117: accounting | C117: Total $ paid by the health plan in October 2010
A118: PAID_201011 | B118: accounting | C118: Total $ paid by the health plan in November 2010
A119: PAID_201012 | B119: accounting | C119: Total $ paid by the health plan in December 2010
A120: PAID_201101 | B120: accounting | C120: Total $ paid by the health plan in January 2011
A121: PAID_201102 | B121: accounting | C121: Total $ paid by the health plan in February 2011
A122: PAID_201103 | B122: accounting | C122: Total $ paid by the health plan in March 2011
A123: PAID_201104 | B123: accounting | C123: Total $ paid by the health plan in April 2011
A124: PAID_201105 | B124: accounting | C124: Total $ paid by the health plan in May 2011
A125: PAID_201106 | B125: accounting | C125: Total $ paid by the health plan in June 2011
A126: PAID_201107 | B126: accounting | C126: Total $ paid by the health plan in July 2011
A127: PAID_201108 | B127: accounting | C127: Total $ paid by the health plan in August 2011
A128: PAID_201109 | B128: accounting | C128: Total $ paid by the health plan in September 2011
A129: PAID_201110 | B129: accounting | C129: Total $ paid by the health plan in October 2011
A130: PAID_201111 | B130: accounting | C130: Total $ paid by the health plan in November 2011
A131: PAID_201112 | B131: accounting | C131: Total $ paid by the health plan in December 2011
A132: TOTAL_MED_2010 | B132: accounting | C132: Total $ paid by the health plan on medical (non-Rx) services in 2010 (sum of all 12 PAID_2010XX fields)
A133: TOTAL_MED_2011 | B133: accounting | C133: Total $ paid by the health plan on medical (non-Rx) services in 2011 (sum of all 12 PAID_2011XX fields)
A134: MED_PMPM_2010 | B134: accounting | C134: Cost / total $ paid by the health plan on medical (non-Rx) services per month in 2010
A135: MED_PMPM_2011 | B135: accounting | C135: Cost / total $ paid by the health plan on medical (non-Rx) services per month in 2011
A136: TOTAL_RX_2010 | B136: accounting | C136: Total $ paid by the health plan on prescription drugs in 2010
A137: TOTAL_RX_2011 | B137: accounting | C137: Total $ paid by the health plan on prescription drugs in 2011
A138: RX_SCRIPTS_2010 | B138: number | C138: # of prescriptions in 2010
A139: RX_SCRIPTS_2011 | B139: number | C139: # of prescriptions in 2011
A140: TOTAL_PAID_2010 | B140: accounting | C140: Total $ paid by the health plan in 2010 (medical and Rx)
A141: RX_PMPM_2010 | B141: accounting | C141: Cost / total $ paid by the health plan on prescrptions per month in 2010
A142: RX_PMPM_2011 | B142: accounting | C142: Cost / total $ paid by the health plan on prescriptions per month in 2011
A143: TOTAL_PAID_2011 | B143: accounting | C143: Total $ paid by the health plan in 2011 (medical and Rx)
A144: TOTAL_PMPM_2010 | B144: accounting | C144: Total Cost / total $ paid by the health plan for medical AND Rx per month in 2010
A145: TOTAL_PMPM_2011 | B145: accounting | C145: Total Cost / total $ paid by the health plan for medical AND Rx per month in 2011
A146: TOTAL_PMPM_PCT_2010 | B146: number (0 decimals) | C146: Percentile of PMPM in 2010 relative to population (e.g., 10% means 10% of members had a lower PMPM than this member in 2010)
A147: TOTAL_PMPM_PCT_2011 | B147: number (0 decimals) | C147: Percentile of PMPM in 2011 relative to population (e.g., 10% means 10% of members had a lower PMPM than this member in 2011)
A148: TOTAL_BH_2010 | B148: accounting | C148: Total behavioral health costs in 2010 -- these are carved out and provided by Community Care Behavioral Health (CCHB) -- not included in costs shown in the model
A149: TOTAL_BH_2011 | B149: accounting | C149: Total behavioral health costs in 2011 -- these are carved out and provided by Community Care Behavioral Health (CCHB) -- not included in costs shown in the model
A150: MEM_MOS_2010 | B150: number (0 decimals) | C150: Number of months in 2010 that this person was a member
A151: MEM_MOS_2011 | B151: number (0 decimals) | C151: Number of months in 2011 that this person was a member
A152: Fields with a "CC" pre-fix (rows 153 - 189) indicate chronic conditions that have been attributed to the member. 1 indicates "yes - the member has been diagnosed with the chronic condition". 0 indicates "no, the member has not been diagnosed with the chronic condition".
A153: CC_ASTHMA | B153: number (0 decimals) | C153: Flag for asthma
A154: CC_COPD | B154: number (0 decimals) | C154: Flag for COPD
A155: CC_CHF | B155: number (0 decimals) | C155: Flag for chronic heart failure
A156: CC_CAD | B156: number (0 decimals) | C156: Flag for coronary artery disease
A157: CC_DM | B157: number (0 decimals) | C157: Flag for diabetes
A158: CC_MORBID_OBESITY | B158: number (0 decimals) | C158: Flag for morbid obesity
A159: CC_HYPERLIPIDEMIA | B159: number (0 decimals) | C159: Flag for hyperlipidemia
A160: CC_HYPERTENSION | B160: number (0 decimals) | C160: Flag for hypertension
A161: CC_RHEUMA_ARTHRITIS | B161: number (0 decimals) | C161: Flag for rheumatoid arthritis
A162: CC_OSTEOARTHRITIS | B162: number (0 decimals) | C162: Flag for osteoarthritis
A163: CC_LUPUS_CONN_TISSUE_DISORDERS | B163: number (0 decimals) | C163: Flag for lupus
A164: CC_ATRIAL_FIBRILLATION | B164: number (0 decimals) | C164: Flag for atrial fibrillation
A165: CC_CENTRAL_NERV_SYS_DISEASE | B165: number (0 decimals) | C165: Flag for CNS disease
A166: CC_CEREBRAL_PALSY | B166: number (0 decimals) | C166: Flag for cerbral palsy
A167: CC_CEREBRO_VASCULAR_DISEASE | B167: number (0 decimals) | C167: Flag for cerebro vascular disease
A168: CC_CHRONIC_HEPATITIS | B168: number (0 decimals) | C168: Flag for chronic hepatitis
A169: CC_COAGULATION_DEFECTS | B169: number (0 decimals) | C169: Flag for coagulation defects
A170: CC_CYSTIC_FIBROSIS | B170: number (0 decimals) | C170: Flag for cystic fibrosis
A171: CC_EPILEPSY | B171: number (0 decimals) | C171: Flag for epilepsy
A172: CC_ESRD | B172: number (0 decimals) | C172: Flag for ESRD
A173: CC_HEMATOLOGICAL_SICKLE_CELL | B173: number (0 decimals) | C173: Flag for hematological sickel cell anemia
A174: CC_HIV | B174: number (0 decimals) | C174: Flag for HIV
A175: CC_IMMUNE_DEFICIENCY | B175: number (0 decimals) | C175: Flag for immune deficiency
A176: CC_INFLAMMATORY_BOWEL_DISEASE | B176: number (0 decimals) | C176: Flag for inflammatory bowel disease
A177: CC_LIVER_DISEASE | B177: number (0 decimals) | C177: Flag fo liver disease
A178: CC_MIGRAINE | B178: number (0 decimals) | C178: Flag for migraines
A179: CC_MULTIPLE_SCLEROSIS | B179: number (0 decimals) | C179: Flag for multiple sclerosis
A180: CC_MUSCULAR_DYSTROPHY | B180: number (0 decimals) | C180: Flag for muscular dystrophy
A181: CC_MYASTHENIA_GRAVIS | B181: number (0 decimals) | C181: Flag for myasthenia gravis
A182: CC_NEOPLASM_MALIGNANT | B182: number (0 decimals) | C182: Flag for neoplasm malignant
A183: CC_OSTEOPOROSIS | B183: number (0 decimals) | C183: Flag for osteoporosis
A184: CC_PANCREATITIS_CHRONIC | B184: number (0 decimals) | C184: Flag for chronic pancreatitis
A185: CC_PARALYSIS | B185: number (0 decimals) | C185: Flag for paralysis
A186: CC_PARKINSONS_DISEASE | B186: number (0 decimals) | C186: Flag for Parkinsons disease
A187: CC_RENAL_DISEASE | B187: number (0 decimals) | C187: Flag for renal disease
A188: CC_TRANSPLANT | B188: number (0 decimals) | C188: Flag for transplant
A189: CC_SPINA_BIFIDA_SCI | B189: number (0 decimals) | C189: Flag for spina bifida
A190: SPEC_ANESTHESIOLOGY | B190: accounting | C190: Total $ paid by the health plan related to specialist visits for anesthesiology
A191: SPEC_ORTHO_SURG | B191: accounting | C191: Total $ paid by the health plan related to specialist visits for orthopedic surgery
A192: SPEC_OBGYN | B192: accounting | C192: Total $ paid by the health plan related to specialist visits for obstetrics/gynecology
A193: SPEC_OTOLARYNGOLOGY | B193: accounting | C193: Total $ paid by the health plan related to specialist visits for otolaryngology
A194: SPEC_ENDOCRINOLOGY | B194: accounting | C194: Total $ paid by the health plan related to specialist visits for endocrinology
A195: SPEC_GASTROENTEROLOGY | B195: accounting | C195: Total $ paid by the health plan related to specialist visits for gastroenterology
A196: SPEC_CARDIOLOGY | B196: accounting | C196: Total $ paid by the health plan related to specialist visits for cardiology
A197: SPEC_NEUROLOGY | B197: accounting | C197: Total $ paid by the health plan related to specialist visits for neurology
A198: SPEC_NEURO_SURG | B198: accounting | C198: Total $ paid by the health plan related to specialist visits for neurological surgery
A199: SPEC_ORAL_MAXILLO_SURG | B199: accounting | C199: Total $ paid by the health plan related to specialist visits for oral maxillo surgery
A200: SPEC_HEMO_ONCOLOGY | B200: accounting | C200: Total $ paid by the health plan related to specialist visits for hematology/oncology
A201: SPEC_OPHTHALMOLOGY | B201: accounting | C201: Total $ paid by the health plan related to specialist visits for ophthalmology
... 146 more rows

Sheet Input

Sheet Drop Down Lists
A1: Drop Down Lists
A3: Group | C3: PMPM Percentile 2010 | E3: PMPM Percentile 2011 | G3: Range | I3: % Over Threshold | K3: # of Times Above Threshold | M3: Year | O3: Flags
A6: All | C6: 0 | E6: 0 | G6: Lower Range | I6: 0 | K6: 1 | M6: Total | O6: 0
A7: Group A | C7: 10 | E7: 10 | G7: Upper Range | I7: 0.1 | K7: 2 | M7: 2010 | O7: 1
A8: Group B | C8: 20 | E8: 20 | G8: Exact | I8: 0.15 | K8: 3 | M8: 2011 | O8: 2
C9: 30 | E9: 30 | I9: 0.2 | K9: 4 | O9: 3
C10: 40 | E10: 40 | I10: 0.25 | K10: 5 | O10: 4
C11: 50 | E11: 50 | I11: 0.3 | K11: 6 | O11: 5
C12: 60 | E12: 60 | I12: 0.35 | K12: 7
C13: 70 | E13: 70 | I13: 0.4 | K13: 8
C14: 80 | E14: 80 | I14: 0.45 | K14: 9
C15: 90 | E15: 90 | I15: 0.5 | K15: 10
C16: 100 | E16: 100 | I16: 0.55 | K16: 11
I17: 0.6 | K17: 12
I18: 0.7 | K18: 13
I19: 0.8 | K19: 14
I20: 0.9 | K20: 15
I21: 1 | K21: 16
K22: 17
K23: 18
K24: 19
K25: 20
K26: 21
K27: 22
K28: 23
K29: 24

Sheet Macro_Data
A1: DO NOT DELETE… | E1: Charts
F4: % of Selected Population by Number of Chronic Conditions | J4: N | K4: Labels | N4: Basis Population PMPM | T4: Number of Times Over Threshold | AA4: Selection Illustration | AJ4: Refresh Pivot | AR4: Top 10 for Bubble | AY4: CC
F5: Chronic Conditions | G5: % of Selected Population | J5: =SUMIF(Input!$IJ$2:$IJ$25001,1) -> 9 | K5: 0 | T5: # | U5: N | V5: N2 | W5: N3 | X5: N4 | Y5: Nlabels | AJ5: Row Labels | AK5: Total Spend | AL5: Occurences | AM5: Prevalence | AN5: Size | AO5: Sum of PMPM | AS5: Total Spend | AT5: PMPM | AU5: Occurences | AV5: Prevalence | AW5: Size | BA5: Occurences | BB5: PMPM | BC5: Total Spend | BD5: Prevalence
F6: 0 | G6: =SUMIF(Input!$IJ$2:$IJ$25001,1)/'RWJF Population Model'!$Z$47 -> 0.5 | J6: =SUMIF(Input!$IK$2:$IK$25001,1) -> 7 | K6: 0 | N6: 2010 | O6: 2011 | P6: D | Q6: Total | T6: 0 | U6: =IF(AND('RWJF Population Model'!$AO$25<>"",'RWJF Population Model'!$AO$23<>"",'RWJF Population Model'!$AO$36="",'RWJF Population Model'!$AO$40=""),SUMIF(Input!$IQ$2:$IQ$25001,1,Input!$LC$2:$LC$25001),0) -> 0 | V6: =IF(AND('RWJF Population Model'!$AO$25<>"",'RWJF Population Model'!$AO$23<>"",'RWJF Population Model'!$AO$36<>"",'RWJF Population Model'!$AO$40=""),SUMIF(Input!$IQ$2:$IQ$25001,1,Input!$LC$2:$LC$25001),0) -> 2 | W6: =IF(AND('RWJF Population Model'!$AO$25<>"",'RWJF Population Model'!$AO$23<>"",'RWJF Population Model'!$AO$36<>"",'RWJF Population Model'!$AO$40<>""),SUMIF(Input!$IQ$2:$IQ$25001,1,Input!$LC$2:$LC$25001),0) -> 0 | X6: =IF(T6>='RWJF Population Model'!$AO$40,W6,0) -> 0 | Y6: =IF(U6<>0,U6,IF(V6<>0,V6,IF(W6<>0,W6,""))) -> 2 | AA6: 20 | AB6: 40 | AC6: 40 | AJ6: ASTHMA | AK6: 3432.13 | AL6: 16 | AM6: 0.3333333333 | AN6: 149.2230435 | AO6: 6.063833922 | AQ6: 1 | AR6: =AJ6 -> ASTHMA | AS6: =AK6 -> 3432.13 | AT6: =AO6 -> 6.063833922 | AU6: =AL6 -> 16 | AV6: =AM6 -> 0.3333333333 | AW6: =AN6 -> 149.2230435 | AY6: 1 | AZ6: =AJ6 -> ASTHMA | BA6: =AL6 -> 16 | BB6: =AO6 -> 6.063833922 | BC6: =AK6 -> 3432.13 | BD6: =AM6 -> 0.3333333333
F7: 1 | G7: =SUMIF(Input!$IK$2:$IK$25001,1)/'RWJF Population Model'!$Z$47 -> 0.3888888889 | J7: =SUMIF(Input!$IL$2:$IL$25001,1) -> 1 | K7: 0 | T7: 1 | U7: =IF(AND('RWJF Population Model'!$AO$25<>"",'RWJF Population Model'!$AO$23<>"",'RWJF Population Model'!$AO$36="",'RWJF Population Model'!$AO$40=""),SUMIF(Input!$IQ$2:$IQ$25001,1,Input!$LD$2:$LD$25001),0) -> 0 | V7: =IF(AND('RWJF Population Model'!$AO$25<>"",'RWJF Population Model'!$AO$23<>"",'RWJF Population Model'!$AO$36<>"",'RWJF Population Model'!$AO$40=""),SUMIF(Input!$IQ$2:$IQ$25001,1,Input!$LD$2:$LD$25001),0) -> 2 | W7: =IF(AND('RWJF Population Model'!$AO$25<>"",'RWJF Population Model'!$AO$23<>"",'RWJF Population Model'!$AO$36<>"",'RWJF Population Model'!$AO$40<>""),SUMIF(Input!$IQ$2:$IQ$25001,1,Input!$LD$2:$LD$25001),0) -> 0 | X7: =IF(T7>='RWJF Population Model'!$AO$40,W7,0) -> 0 | Y7: =IF(U7<>0,U7,IF(V7<>0,V7,IF(W7<>0,W7,""))) -> 2 | AA7: 20 | AB7: 40 | AC7: 40 | AJ7: DM | AK7: 616.32 | AL7: 1 | AM7: 0.02083333333 | AN7: 26.79652174 | AO7: 1.088904594 | AQ7: 2 | AR7: =AJ7 -> DM | AS7: =AK7 -> 616.32 | AT7: =AO7 -> 1.088904594 | AU7: =AL7 -> 1 | AV7: =AM7 -> 0.02083333333 | AW7: =AN7 -> 26.79652174 | AY7: 2 | AZ7: =AJ7 -> DM | BA7: =AL7 -> 1 | BB7: =AO7 -> 1.088904594 | BC7: =AK7 -> 616.32 | BD7: =AM7 -> 0.02083333333
F8: 2 | G8: =SUMIF(Input!$IL$2:$IL$25001,1)/'RWJF Population Model'!$Z$47 -> 0.05555555556 | J8: =SUMIF(Input!$IM$2:$IM$25001,1) -> 0 | K8: 0 | N8: =SUMIF(Input!$IQ$2:$IQ$25001,1,Input!$EG$2:$EG$25001)/SUMIF(Input!$IQ$2:$IQ$25001,1,Input!$EQ$2:$EQ$25001) -> 204.79125 | O8: =SUMIF(Input!$IQ$2:$IQ$25001,1,Input!$EJ$2:$EJ$25001)/SUMIF(Input!$IQ$2:$IQ$25001,1,Input!$ER$2:$ER$25001) -> 381.7753846 | P8: =O8-N8 -> 176.9841346 | Q8: =SUMIF(Input!$IQ$2:$IQ$25001,1,Input!$JD$2:$JD$25001)/SUMIF(Input!$IQ$2:$IQ$25001,1,Input!$JF$2:$JF$25001) -> 291.6136557 | T8: 2 | U8: =IF(AND('RWJF Population Model'!$AO$25<>"",'RWJF Population Model'!$AO$23<>"",'RWJF Population Model'!$AO$36="",'RWJF Population Model'!$AO$40=""),SUMIF(Input!$IQ$2:$IQ$25001,1,Input!$LE$2:$LE$25001),0) -> 0 | V8: =IF(AND('RWJF Population Model'!$AO$25<>"",'RWJF Population Model'!$AO$23<>"",'RWJF Population Model'!$AO$36<>"",'RWJF Population Model'!$AO$40=""),SUMIF(Input!$IQ$2:$IQ$25001,1,Input!$LE$2:$LE$25001),0) -> 1 | W8: =IF(AND('RWJF Population Model'!$AO$25<>"",'RWJF Population Model'!$AO$23<>"",'RWJF Population Model'!$AO$36<>"",'RWJF Population Model'!$AO$40<>""),SUMIF(Input!$IQ$2:$IQ$25001,1,Input!$LE$2:$LE$25001),0) -> 0 | X8: =IF(T8>='RWJF Population Model'!$AO$40,W8,0) -> 0 | Y8: 1 | AJ8: SPINA BIFIDA SCI | AK8: 0 | AL8: 0 | AM8: 0 | AN8: 0 | AO8: 0 | AQ8: 3 | AR8: SPINA BIFIDA SCI | AS8: 0 | AT8: 0 | AU8: 0 | AV8: 0 | AW8: 0 | AY8: 3 | AZ8: SPINA BIFIDA SCI | BA8: 0 | BB8: 0 | BC8: 0 | BD8: 0
F9: 3 | G9: =SUMIF(Input!$IM$2:$IM$25001,1)/'RWJF Population Model'!$Z$47 -> 0 | J9: =SUMIF(Input!$IN$2:$IN$25001,1) -> 1 | K9: 0 | T9: 3 | U9: =IF(AND('RWJF Population Model'!$AO$25<>"",'RWJF Population Model'!$AO$23<>"",'RWJF Population Model'!$AO$36="",'RWJF Population Model'!$AO$40=""),SUMIF(Input!$IQ$2:$IQ$25001,1,Input!$LF$2:$LF$25001),0) -> 0 | V9: =IF(AND('RWJF Population Model'!$AO$25<>"",'RWJF Population Model'!$AO$23<>"",'RWJF Population Model'!$AO$36<>"",'RWJF Population Model'!$AO$40=""),SUMIF(Input!$IQ$2:$IQ$25001,1,Input!$LF$2:$LF$25001),0) -> 2 | W9: =IF(AND('RWJF Population Model'!$AO$25<>"",'RWJF Population Model'!$AO$23<>"",'RWJF Population Model'!$AO$36<>"",'RWJF Population Model'!$AO$40<>""),SUMIF(Input!$IQ$2:$IQ$25001,1,Input!$LF$2:$LF$25001),0) -> 0 | X9: =IF(T9>='RWJF Population Model'!$AO$40,W9,0) -> 0 | Y9: 2 | AA9: =IF('RWJF Population Model'!$AO$40="","","Selected Population:") ->  | AJ9: NEOPLASM MALIGNANT | AK9: 0 | AL9: 0 | AM9: 0 | AN9: 0 | AO9: 0 | AQ9: 4 | AR9: NEOPLASM MALIGNANT | AS9: 0 | AT9: 0 | AU9: 0 | AV9: 0 | AW9: 0 | AY9: 4 | AZ9: NEOPLASM MALIGNANT | BA9: 0 | BB9: 0 | BC9: 0 | BD9: 0
F10: 4 | G10: =SUMIF(Input!$IN$2:$IN$25001,1)/'RWJF Population Model'!$Z$47 -> 0.05555555556 | J10: =SUMIF(Input!$IO$2:$IO$25001,1) -> 0 | K10: 0 | T10: 4 | U10: =IF(AND('RWJF Population Model'!$AO$25<>"",'RWJF Population Model'!$AO$23<>"",'RWJF Population Model'!$AO$36="",'RWJF Population Model'!$AO$40=""),SUMIF(Input!$IQ$2:$IQ$25001,1,Input!$LG$2:$LG$25001),0) -> 0 | V10: =IF(AND('RWJF Population Model'!$AO$25<>"",'RWJF Population Model'!$AO$23<>"",'RWJF Population Model'!$AO$36<>"",'RWJF Population Model'!$AO$40=""),SUMIF(Input!$IQ$2:$IQ$25001,1,Input!$LG$2:$LG$25001),0) -> 1 | W10: =IF(AND('RWJF Population Model'!$AO$25<>"",'RWJF Population Model'!$AO$23<>"",'RWJF Population Model'!$AO$36<>"",'RWJF Population Model'!$AO$40<>""),SUMIF(Input!$IQ$2:$IQ$25001,1,Input!$LG$2:$LG$25001),0) -> 0 | X10: =IF(T10>='RWJF Population Model'!$AO$40,W10,0) -> 0 | Y10: 1 | AA10: =CONCATENATE("Medical and Rx PMPM of Initial Crossection"," - ",AH10) -> Medical and Rx PMPM of Initial Crossection - $292 | AF10: =ROUND('RWJF Population Model'!$AO$27,0) -> 292 | AH10: =IF(AND(AF10>=1000,AF10<10000),CONCATENATE("$",LEFT(AF10,1),",",MID(AF10,2,3)),IF(AF10>=10000,CONCATENATE("$",LEFT(AF10,2),",",MID(AF10,3,3)),CONCATENATE("$",LEFT(AF10,3)))) -> $292 | AJ10: LUPUS CONN TISSUE DISORDERS | AK10: 0 | AL10: 0 | AM10: 0 | AN10: 0 | AO10: 0 | AQ10: 5 | AR10: LUPUS CONN TISSUE DISORDERS | AS10: 0 | AT10: 0 | AU10: 0 | AV10: 0 | AW10: 0 | AY10: 5 | AZ10: LUPUS CONN TISSUE DISORDERS | BA10: 0 | BB10: 0 | BC10: 0 | BD10: 0
F11: 5 or More | G11: =SUMIF(Input!$IO$2:$IO$25001,1)/'RWJF Population Model'!$Z$47 -> 0 | T11: 5 | U11: =IF(AND('RWJF Population Model'!$AO$25<>"",'RWJF Population Model'!$AO$23<>"",'RWJF Population Model'!$AO$36="",'RWJF Population Model'!$AO$40=""),SUMIF(Input!$IQ$2:$IQ$25001,1,Input!$LH$2:$LH$25001),0) -> 0 | V11: =IF(AND('RWJF Population Model'!$AO$25<>"",'RWJF Population Model'!$AO$23<>"",'RWJF Population Model'!$AO$36<>"",'RWJF Population Model'!$AO$40=""),SUMIF(Input!$IQ$2:$IQ$25001,1,Input!$LH$2:$LH$25001),0) -> 1 | W11: =IF(AND('RWJF Population Model'!$AO$25<>"",'RWJF Population Model'!$AO$23<>"",'RWJF Population Model'!$AO$36<>"",'RWJF Population Model'!$AO$40<>""),SUMIF(Input!$IQ$2:$IQ$25001,1,Input!$LH$2:$LH$25001),0) -> 0 | X11: =IF(T11>='RWJF Population Model'!$AO$40,W11,0) -> 0 | Y11: 1 | AA11: =IF('RWJF Population Model'!$AO$36="","",CONCATENATE("Monthly Episodic Spend Threshold"," - ",AH11)) -> Monthly Episodic Spend Threshold - $292 | AF11: =ROUND('RWJF Population Model'!$AO$38,0) -> 292 | AH11: =IF(AND(AF11>=1000,AF11<10000),CONCATENATE("$",LEFT(AF11,1),",",MID(AF11,2,3)),IF(AF11>=10000,CONCATENATE("$",LEFT(AF11,2),",",MID(AF11,3,3)),CONCATENATE("$",LEFT(AF11,3)))) -> $292 | AJ11: CENTRAL NERV SYS DISEASE | AK11: 0 | AL11: 1 | AM11: 0.02083333333 | AN11: 0 | AO11: 0 | AQ11: 6 | AR11: CENTRAL NERV SYS DISEASE | AS11: 0 | AT11: 0 | AU11: 1 | AV11: 0.02083333333 | AW11: 0 | AY11: 6 | AZ11: CENTRAL NERV SYS DISEASE | BA11: 1 | BB11: 0 | BC11: 0 | BD11: 0.02083333333
T12: 6 | U12: =IF(AND('RWJF Population Model'!$AO$25<>"",'RWJF Population Model'!$AO$23<>"",'RWJF Population Model'!$AO$36="",'RWJF Population Model'!$AO$40=""),SUMIF(Input!$IQ$2:$IQ$25001,1,Input!$LI$2:$LI$25001),0) -> 0 | V12: =IF(AND('RWJF Population Model'!$AO$25<>"",'RWJF Population Model'!$AO$23<>"",'RWJF Population Model'!$AO$36<>"",'RWJF Population Model'!$AO$40=""),SUMIF(Input!$IQ$2:$IQ$25001,1,Input!$LI$2:$LI$25001),0) -> 0 | W12: =IF(AND('RWJF Population Model'!$AO$25<>"",'RWJF Population Model'!$AO$23<>"",'RWJF Population Model'!$AO$36<>"",'RWJF Population Model'!$AO$40<>""),SUMIF(Input!$IQ$2:$IQ$25001,1,Input!$LI$2:$LI$25001),0) -> 0 | X12: =IF(T12>='RWJF Population Model'!$AO$40,W12,0) -> 0 | AA12: =IF('RWJF Population Model'!$AO$40="","",CONCATENATE(AH12," Members with >/= ",AG12," Episodic Spend Months")) ->  | AF12: ='RWJF Population Model'!$Z$47 -> 18 | AG12: ='RWJF Population Model'!$AO$40 -> 0 | AH12: =IF(AND(AF12>=1000,AF12<10000),CONCATENATE(LEFT(AF12,1),",",MID(AF12,2,3)),IF(AF12>=10000,CONCATENATE(LEFT(AF12,2),",",MID(AF12,3,3)),CONCATENATE(LEFT(AF12,3)))) -> 18 | AJ12: PARALYSIS | AK12: 0 | AL12: 0 | AM12: 0 | AN12: 0 | AO12: 0 | AQ12: 7 | AR12: PARALYSIS | AS12: 0 | AT12: 0 | AU12: 0 | AV12: 0 | AW12: 0 | AY12: 7 | AZ12: PARALYSIS | BA12: 0 | BB12: 0 | BC12: 0 | BD12: 0
T13: 7 | U13: =IF(AND('RWJF Population Model'!$AO$25<>"",'RWJF Population Model'!$AO$23<>"",'RWJF Population Model'!$AO$36="",'RWJF Population Model'!$AO$40=""),SUMIF(Input!$IQ$2:$IQ$25001,1,Input!$LJ$2:$LJ$25001),0) -> 0 | V13: =IF(AND('RWJF Population Model'!$AO$25<>"",'RWJF Population Model'!$AO$23<>"",'RWJF Population Model'!$AO$36<>"",'RWJF Population Model'!$AO$40=""),SUMIF(Input!$IQ$2:$IQ$25001,1,Input!$LJ$2:$LJ$25001),0) -> 4 | W13: =IF(AND('RWJF Population Model'!$AO$25<>"",'RWJF Population Model'!$AO$23<>"",'RWJF Population Model'!$AO$36<>"",'RWJF Population Model'!$AO$40<>""),SUMIF(Input!$IQ$2:$IQ$25001,1,Input!$LJ$2:$LJ$25001),0) -> 0 | X13: =IF(T13>='RWJF Population Model'!$AO$40,W13,0) -> 0 | Y13: 4 | AJ13: CEREBRAL PALSY | AK13: 0 | AL13: 1 | AM13: 0.02083333333 | AN13: 0 | AO13: 0 | AQ13: 8 | AR13: CEREBRAL PALSY | AS13: 0 | AT13: 0 | AU13: 1 | AV13: 0.02083333333 | AW13: 0 | AY13: 8 | AZ13: CEREBRAL PALSY | BA13: 1 | BB13: 0 | BC13: 0 | BD13: 0.02083333333
T14: 8 | U14: =IF(AND('RWJF Population Model'!$AO$25<>"",'RWJF Population Model'!$AO$23<>"",'RWJF Population Model'!$AO$36="",'RWJF Population Model'!$AO$40=""),SUMIF(Input!$IQ$2:$IQ$25001,1,Input!$LK$2:$LK$25001),0) -> 0 | V14: =IF(AND('RWJF Population Model'!$AO$25<>"",'RWJF Population Model'!$AO$23<>"",'RWJF Population Model'!$AO$36<>"",'RWJF Population Model'!$AO$40=""),SUMIF(Input!$IQ$2:$IQ$25001,1,Input!$LK$2:$LK$25001),0) -> 1 | W14: =IF(AND('RWJF Population Model'!$AO$25<>"",'RWJF Population Model'!$AO$23<>"",'RWJF Population Model'!$AO$36<>"",'RWJF Population Model'!$AO$40<>""),SUMIF(Input!$IQ$2:$IQ$25001,1,Input!$LK$2:$LK$25001),0) -> 0 | X14: =IF(T14>='RWJF Population Model'!$AO$40,W14,0) -> 0 | Y14: 1 | AJ14: INFLAMMATORY BOWEL DISEASE | AK14: 0 | AL14: 0 | AM14: 0 | AN14: 0 | AO14: 0 | AQ14: 9 | AR14: INFLAMMATORY BOWEL DISEASE | AS14: 0 | AT14: 0 | AU14: 0 | AV14: 0 | AW14: 0 | AY14: 9 | AZ14: INFLAMMATORY BOWEL DISEASE | BA14: 0 | BB14: 0 | BC14: 0 | BD14: 0
T15: 9 | U15: =IF(AND('RWJF Population Model'!$AO$25<>"",'RWJF Population Model'!$AO$23<>"",'RWJF Population Model'!$AO$36="",'RWJF Population Model'!$AO$40=""),SUMIF(Input!$IQ$2:$IQ$25001,1,Input!$LL$2:$LL$25001),0) -> 0 | V15: =IF(AND('RWJF Population Model'!$AO$25<>"",'RWJF Population Model'!$AO$23<>"",'RWJF Population Model'!$AO$36<>"",'RWJF Population Model'!$AO$40=""),SUMIF(Input!$IQ$2:$IQ$25001,1,Input!$LL$2:$LL$25001),0) -> 0 | W15: =IF(AND('RWJF Population Model'!$AO$25<>"",'RWJF Population Model'!$AO$23<>"",'RWJF Population Model'!$AO$36<>"",'RWJF Population Model'!$AO$40<>""),SUMIF(Input!$IQ$2:$IQ$25001,1,Input!$LL$2:$LL$25001),0) -> 0 | X15: =IF(T15>='RWJF Population Model'!$AO$40,W15,0) -> 0 | AJ15: CEREBRO VASCULAR DISEASE | AK15: 0 | AL15: 0 | AM15: 0 | AN15: 0 | AO15: 0 | AQ15: 10 | AR15: CEREBRO VASCULAR DISEASE | AS15: 0 | AT15: 0 | AU15: 0 | AV15: 0 | AW15: 0 | AY15: 10 | AZ15: CEREBRO VASCULAR DISEASE | BA15: 0 | BB15: 0 | BC15: 0 | BD15: 0
T16: 10 | U16: =IF(AND('RWJF Population Model'!$AO$25<>"",'RWJF Population Model'!$AO$23<>"",'RWJF Population Model'!$AO$36="",'RWJF Population Model'!$AO$40=""),SUMIF(Input!$IQ$2:$IQ$25001,1,Input!$LM$2:$LM$25001),0) -> 0 | V16: =IF(AND('RWJF Population Model'!$AO$25<>"",'RWJF Population Model'!$AO$23<>"",'RWJF Population Model'!$AO$36<>"",'RWJF Population Model'!$AO$40=""),SUMIF(Input!$IQ$2:$IQ$25001,1,Input!$LM$2:$LM$25001),0) -> 1 | W16: =IF(AND('RWJF Population Model'!$AO$25<>"",'RWJF Population Model'!$AO$23<>"",'RWJF Population Model'!$AO$36<>"",'RWJF Population Model'!$AO$40<>""),SUMIF(Input!$IQ$2:$IQ$25001,1,Input!$LM$2:$LM$25001),0) -> 0 | X16: =IF(T16>='RWJF Population Model'!$AO$40,W16,0) -> 0 | Y16: 1 | AJ16: MORBID OBESITY | AK16: 0 | AL16: 0 | AM16: 0 | AN16: 0 | AO16: 0 | AY16: 11 | AZ16: MORBID OBESITY | BA16: 0 | BB16: 0 | BC16: 0 | BD16: 0
T17: 11 | U17: =IF(AND('RWJF Population Model'!$AO$25<>"",'RWJF Population Model'!$AO$23<>"",'RWJF Population Model'!$AO$36="",'RWJF Population Model'!$AO$40=""),SUMIF(Input!$IQ$2:$IQ$25001,1,Input!$LN$2:$LN$25001),0) -> 0 | V17: =IF(AND('RWJF Population Model'!$AO$25<>"",'RWJF Population Model'!$AO$23<>"",'RWJF Population Model'!$AO$36<>"",'RWJF Population Model'!$AO$40=""),SUMIF(Input!$IQ$2:$IQ$25001,1,Input!$LN$2:$LN$25001),0) -> 0 | W17: =IF(AND('RWJF Population Model'!$AO$25<>"",'RWJF Population Model'!$AO$23<>"",'RWJF Population Model'!$AO$36<>"",'RWJF Population Model'!$AO$40<>""),SUMIF(Input!$IQ$2:$IQ$25001,1,Input!$LN$2:$LN$25001),0) -> 0 | X17: =IF(T17>='RWJF Population Model'!$AO$40,W17,0) -> 0 | AJ17: CHF | AK17: 0 | AL17: 0 | AM17: 0 | AN17: 0 | AO17: 0 | AY17: 12 | AZ17: CHF | BA17: 0 | BB17: 0 | BC17: 0 | BD17: 0
T18: 12 | U18: =IF(AND('RWJF Population Model'!$AO$25<>"",'RWJF Population Model'!$AO$23<>"",'RWJF Population Model'!$AO$36="",'RWJF Population Model'!$AO$40=""),SUMIF(Input!$IQ$2:$IQ$25001,1,Input!$LO$2:$LO$25001),0) -> 0 | V18: =IF(AND('RWJF Population Model'!$AO$25<>"",'RWJF Population Model'!$AO$23<>"",'RWJF Population Model'!$AO$36<>"",'RWJF Population Model'!$AO$40=""),SUMIF(Input!$IQ$2:$IQ$25001,1,Input!$LO$2:$LO$25001),0) -> 0 | W18: =IF(AND('RWJF Population Model'!$AO$25<>"",'RWJF Population Model'!$AO$23<>"",'RWJF Population Model'!$AO$36<>"",'RWJF Population Model'!$AO$40<>""),SUMIF(Input!$IQ$2:$IQ$25001,1,Input!$LO$2:$LO$25001),0) -> 0 | X18: =IF(T18>='RWJF Population Model'!$AO$40,W18,0) -> 0 | AJ18: OSTEOPOROSIS | AK18: 0 | AL18: 0 | AM18: 0 | AN18: 0 | AO18: 0 | AY18: 13 | AZ18: OSTEOPOROSIS | BA18: 0 | BB18: 0 | BC18: 0 | BD18: 0
T19: 13 | U19: =IF(AND('RWJF Population Model'!$AO$25<>"",'RWJF Population Model'!$AO$23<>"",'RWJF Population Model'!$AO$36="",'RWJF Population Model'!$AO$40=""),SUMIF(Input!$IQ$2:$IQ$25001,1,Input!$LP$2:$LP$25001),0) -> 0 | V19: =IF(AND('RWJF Population Model'!$AO$25<>"",'RWJF Population Model'!$AO$23<>"",'RWJF Population Model'!$AO$36<>"",'RWJF Population Model'!$AO$40=""),SUMIF(Input!$IQ$2:$IQ$25001,1,Input!$LP$2:$LP$25001),0) -> 0 | W19: =IF(AND('RWJF Population Model'!$AO$25<>"",'RWJF Population Model'!$AO$23<>"",'RWJF Population Model'!$AO$36<>"",'RWJF Population Model'!$AO$40<>""),SUMIF(Input!$IQ$2:$IQ$25001,1,Input!$LP$2:$LP$25001),0) -> 0 | X19: =IF(T19>='RWJF Population Model'!$AO$40,W19,0) -> 0 | AJ19: CHRONIC HEPATITIS | AK19: 0 | AL19: 0 | AM19: 0 | AN19: 0 | AO19: 0 | AY19: 14 | AZ19: CHRONIC HEPATITIS | BA19: 0 | BB19: 0 | BC19: 0 | BD19: 0
T20: 14 | U20: =IF(AND('RWJF Population Model'!$AO$25<>"",'RWJF Population Model'!$AO$23<>"",'RWJF Population Model'!$AO$36="",'RWJF Population Model'!$AO$40=""),SUMIF(Input!$IQ$2:$IQ$25001,1,Input!$LQ$2:$LQ$25001),0) -> 0 | V20: =IF(AND('RWJF Population Model'!$AO$25<>"",'RWJF Population Model'!$AO$23<>"",'RWJF Population Model'!$AO$36<>"",'RWJF Population Model'!$AO$40=""),SUMIF(Input!$IQ$2:$IQ$25001,1,Input!$LQ$2:$LQ$25001),0) -> 1 | W20: =IF(AND('RWJF Population Model'!$AO$25<>"",'RWJF Population Model'!$AO$23<>"",'RWJF Population Model'!$AO$36<>"",'RWJF Population Model'!$AO$40<>""),SUMIF(Input!$IQ$2:$IQ$25001,1,Input!$LQ$2:$LQ$25001),0) -> 0 | X20: =IF(T20>='RWJF Population Model'!$AO$40,W20,0) -> 0 | Y20: 1 | AJ20: RENAL DISEASE | AK20: 0 | AL20: 0 | AM20: 0 | AN20: 0 | AO20: 0 | AY20: 15 | AZ20: RENAL DISEASE | BA20: 0 | BB20: 0 | BC20: 0 | BD20: 0
T21: 15 | U21: =IF(AND('RWJF Population Model'!$AO$25<>"",'RWJF Population Model'!$AO$23<>"",'RWJF Population Model'!$AO$36="",'RWJF Population Model'!$AO$40=""),SUMIF(Input!$IQ$2:$IQ$25001,1,Input!$LR$2:$LR$25001),0) -> 0 | V21: =IF(AND('RWJF Population Model'!$AO$25<>"",'RWJF Population Model'!$AO$23<>"",'RWJF Population Model'!$AO$36<>"",'RWJF Population Model'!$AO$40=""),SUMIF(Input!$IQ$2:$IQ$25001,1,Input!$LR$2:$LR$25001),0) -> 0 | W21: =IF(AND('RWJF Population Model'!$AO$25<>"",'RWJF Population Model'!$AO$23<>"",'RWJF Population Model'!$AO$36<>"",'RWJF Population Model'!$AO$40<>""),SUMIF(Input!$IQ$2:$IQ$25001,1,Input!$LR$2:$LR$25001),0) -> 0 | X21: =IF(T21>='RWJF Population Model'!$AO$40,W21,0) -> 0 | AJ21: COAGULATION DEFECTS | AK21: 0 | AL21: 0 | AM21: 0 | AN21: 0 | AO21: 0 | AY21: 16 | AZ21: COAGULATION DEFECTS | BA21: 0 | BB21: 0 | BC21: 0 | BD21: 0
T22: 16 | U22: =IF(AND('RWJF Population Model'!$AO$25<>"",'RWJF Population Model'!$AO$23<>"",'RWJF Population Model'!$AO$36="",'RWJF Population Model'!$AO$40=""),SUMIF(Input!$IQ$2:$IQ$25001,1,Input!$LS$2:$LS$25001),0) -> 0 | V22: =IF(AND('RWJF Population Model'!$AO$25<>"",'RWJF Population Model'!$AO$23<>"",'RWJF Population Model'!$AO$36<>"",'RWJF Population Model'!$AO$40=""),SUMIF(Input!$IQ$2:$IQ$25001,1,Input!$LS$2:$LS$25001),0) -> 1 | W22: =IF(AND('RWJF Population Model'!$AO$25<>"",'RWJF Population Model'!$AO$23<>"",'RWJF Population Model'!$AO$36<>"",'RWJF Population Model'!$AO$40<>""),SUMIF(Input!$IQ$2:$IQ$25001,1,Input!$LS$2:$LS$25001),0) -> 0 | X22: =IF(T22>='RWJF Population Model'!$AO$40,W22,0) -> 0 | Y22: 1 | AJ22: ATRIAL FIBRILLATION | AK22: 0 | AL22: 0 | AM22: 0 | AN22: 0 | AO22: 0 | AY22: 17 | AZ22: ATRIAL FIBRILLATION | BA22: 0 | BB22: 0 | BC22: 0 | BD22: 0
T23: 17 | U23: =IF(AND('RWJF Population Model'!$AO$25<>"",'RWJF Population Model'!$AO$23<>"",'RWJF Population Model'!$AO$36="",'RWJF Population Model'!$AO$40=""),SUMIF(Input!$IQ$2:$IQ$25001,1,Input!$LT$2:$LT$25001),0) -> 0 | V23: =IF(AND('RWJF Population Model'!$AO$25<>"",'RWJF Population Model'!$AO$23<>"",'RWJF Population Model'!$AO$36<>"",'RWJF Population Model'!$AO$40=""),SUMIF(Input!$IQ$2:$IQ$25001,1,Input!$LT$2:$LT$25001),0) -> 0 | W23: =IF(AND('RWJF Population Model'!$AO$25<>"",'RWJF Population Model'!$AO$23<>"",'RWJF Population Model'!$AO$36<>"",'RWJF Population Model'!$AO$40<>""),SUMIF(Input!$IQ$2:$IQ$25001,1,Input!$LT$2:$LT$25001),0) -> 0 | X23: =IF(T23>='RWJF Population Model'!$AO$40,W23,0) -> 0 | AJ23: COPD | AK23: 0 | AL23: 0 | AM23: 0 | AN23: 0 | AO23: 0 | AY23: 18 | AZ23: COPD | BA23: 0 | BB23: 0 | BC23: 0 | BD23: 0
T24: 18 | U24: =IF(AND('RWJF Population Model'!$AO$25<>"",'RWJF Population Model'!$AO$23<>"",'RWJF Population Model'!$AO$36="",'RWJF Population Model'!$AO$40=""),SUMIF(Input!$IQ$2:$IQ$25001,1,Input!$LU$2:$LU$25001),0) -> 0 | V24: =IF(AND('RWJF Population Model'!$AO$25<>"",'RWJF Population Model'!$AO$23<>"",'RWJF Population Model'!$AO$36<>"",'RWJF Population Model'!$AO$40=""),SUMIF(Input!$IQ$2:$IQ$25001,1,Input!$LU$2:$LU$25001),0) -> 0 | W24: =IF(AND('RWJF Population Model'!$AO$25<>"",'RWJF Population Model'!$AO$23<>"",'RWJF Population Model'!$AO$36<>"",'RWJF Population Model'!$AO$40<>""),SUMIF(Input!$IQ$2:$IQ$25001,1,Input!$LU$2:$LU$25001),0) -> 0 | X24: =IF(T24>='RWJF Population Model'!$AO$40,W24,0) -> 0 | AJ24: LIVER DISEASE | AK24: 0 | AL24: 0 | AM24: 0 | AN24: 0 | AO24: 0 | AY24: 19 | AZ24: LIVER DISEASE | BA24: 0 | BB24: 0 | BC24: 0 | BD24: 0
T25: 19 | U25: =IF(AND('RWJF Population Model'!$AO$25<>"",'RWJF Population Model'!$AO$23<>"",'RWJF Population Model'!$AO$36="",'RWJF Population Model'!$AO$40=""),SUMIF(Input!$IQ$2:$IQ$25001,1,Input!$LV$2:$LV$25001),0) -> 0 | V25: =IF(AND('RWJF Population Model'!$AO$25<>"",'RWJF Population Model'!$AO$23<>"",'RWJF Population Model'!$AO$36<>"",'RWJF Population Model'!$AO$40=""),SUMIF(Input!$IQ$2:$IQ$25001,1,Input!$LV$2:$LV$25001),0) -> 1 | W25: =IF(AND('RWJF Population Model'!$AO$25<>"",'RWJF Population Model'!$AO$23<>"",'RWJF Population Model'!$AO$36<>"",'RWJF Population Model'!$AO$40<>""),SUMIF(Input!$IQ$2:$IQ$25001,1,Input!$LV$2:$LV$25001),0) -> 0 | X25: =IF(T25>='RWJF Population Model'!$AO$40,W25,0) -> 0 | Y25: 1 | AJ25: CYSTIC FIBROSIS | AK25: 0 | AL25: 0 | AM25: 0 | AN25: 0 | AO25: 0 | AY25: 20 | AZ25: CYSTIC FIBROSIS | BA25: 0 | BB25: 0 | BC25: 0 | BD25: 0
T26: 20 | U26: =IF(AND('RWJF Population Model'!$AO$25<>"",'RWJF Population Model'!$AO$23<>"",'RWJF Population Model'!$AO$36="",'RWJF Population Model'!$AO$40=""),SUMIF(Input!$IQ$2:$IQ$25001,1,Input!$LW$2:$LW$25001),0) -> 0 | V26: =IF(AND('RWJF Population Model'!$AO$25<>"",'RWJF Population Model'!$AO$23<>"",'RWJF Population Model'!$AO$36<>"",'RWJF Population Model'!$AO$40=""),SUMIF(Input!$IQ$2:$IQ$25001,1,Input!$LW$2:$LW$25001),0) -> 0 | W26: =IF(AND('RWJF Population Model'!$AO$25<>"",'RWJF Population Model'!$AO$23<>"",'RWJF Population Model'!$AO$36<>"",'RWJF Population Model'!$AO$40<>""),SUMIF(Input!$IQ$2:$IQ$25001,1,Input!$LW$2:$LW$25001),0) -> 0 | X26: =IF(T26>='RWJF Population Model'!$AO$40,W26,0) -> 0 | AJ26: MIGRAINE | AK26: 0 | AL26: 1 | AM26: 0.02083333333 | AN26: 0 | AO26: 0 | AY26: 21 | AZ26: MIGRAINE | BA26: 1 | BB26: 0 | BC26: 0 | BD26: 0.02083333333
T27: 21 | U27: =IF(AND('RWJF Population Model'!$AO$25<>"",'RWJF Population Model'!$AO$23<>"",'RWJF Population Model'!$AO$36="",'RWJF Population Model'!$AO$40=""),SUMIF(Input!$IQ$2:$IQ$25001,1,Input!$LX$2:$LX$25001),0) -> 0 | V27: =IF(AND('RWJF Population Model'!$AO$25<>"",'RWJF Population Model'!$AO$23<>"",'RWJF Population Model'!$AO$36<>"",'RWJF Population Model'!$AO$40=""),SUMIF(Input!$IQ$2:$IQ$25001,1,Input!$LX$2:$LX$25001),0) -> 0 | W27: =IF(AND('RWJF Population Model'!$AO$25<>"",'RWJF Population Model'!$AO$23<>"",'RWJF Population Model'!$AO$36<>"",'RWJF Population Model'!$AO$40<>""),SUMIF(Input!$IQ$2:$IQ$25001,1,Input!$LX$2:$LX$25001),0) -> 0 | X27: =IF(T27>='RWJF Population Model'!$AO$40,W27,0) -> 0 | AJ27: MULTIPLE SCLEROSIS | AK27: 0 | AL27: 0 | AM27: 0 | AN27: 0 | AO27: 0 | AY27: 22 | AZ27: MULTIPLE SCLEROSIS | BA27: 0 | BB27: 0 | BC27: 0 | BD27: 0
T28: 22 | U28: =IF(AND('RWJF Population Model'!$AO$25<>"",'RWJF Population Model'!$AO$23<>"",'RWJF Population Model'!$AO$36="",'RWJF Population Model'!$AO$40=""),SUMIF(Input!$IQ$2:$IQ$25001,1,Input!$LY$2:$LY$25001),0) -> 0 | V28: =IF(AND('RWJF Population Model'!$AO$25<>"",'RWJF Population Model'!$AO$23<>"",'RWJF Population Model'!$AO$36<>"",'RWJF Population Model'!$AO$40=""),SUMIF(Input!$IQ$2:$IQ$25001,1,Input!$LY$2:$LY$25001),0) -> 0 | W28: =IF(AND('RWJF Population Model'!$AO$25<>"",'RWJF Population Model'!$AO$23<>"",'RWJF Population Model'!$AO$36<>"",'RWJF Population Model'!$AO$40<>""),SUMIF(Input!$IQ$2:$IQ$25001,1,Input!$LY$2:$LY$25001),0) -> 0 | X28: =IF(T28>='RWJF Population Model'!$AO$40,W28,0) -> 0 | AJ28: CAD | AK28: 0 | AL28: 0 | AM28: 0 | AN28: 0 | AO28: 0 | AY28: 23 | AZ28: CAD | BA28: 0 | BB28: 0 | BC28: 0 | BD28: 0
T29: 23 | U29: =IF(AND('RWJF Population Model'!$AO$25<>"",'RWJF Population Model'!$AO$23<>"",'RWJF Population Model'!$AO$36="",'RWJF Population Model'!$AO$40=""),SUMIF(Input!$IQ$2:$IQ$25001,1,Input!$LZ$2:$LZ$25001),0) -> 0 | V29: =IF(AND('RWJF Population Model'!$AO$25<>"",'RWJF Population Model'!$AO$23<>"",'RWJF Population Model'!$AO$36<>"",'RWJF Population Model'!$AO$40=""),SUMIF(Input!$IQ$2:$IQ$25001,1,Input!$LZ$2:$LZ$25001),0) -> 0 | W29: =IF(AND('RWJF Population Model'!$AO$25<>"",'RWJF Population Model'!$AO$23<>"",'RWJF Population Model'!$AO$36<>"",'RWJF Population Model'!$AO$40<>""),SUMIF(Input!$IQ$2:$IQ$25001,1,Input!$LZ$2:$LZ$25001),0) -> 0 | X29: =IF(T29>='RWJF Population Model'!$AO$40,W29,0) -> 0 | AJ29: MUSCULAR DYSTROPHY | AK29: 0 | AL29: 0 | AM29: 0 | AN29: 0 | AO29: 0 | AY29: 24 | AZ29: MUSCULAR DYSTROPHY | BA29: 0 | BB29: 0 | BC29: 0 | BD29: 0
T30: 24 | U30: =IF(AND('RWJF Population Model'!$AO$25<>"",'RWJF Population Model'!$AO$23<>"",'RWJF Population Model'!$AO$36="",'RWJF Population Model'!$AO$40=""),SUMIF(Input!$IQ$2:$IQ$25001,1,Input!$MA$2:$MA$25001),0) -> 0 | V30: =IF(AND('RWJF Population Model'!$AO$25<>"",'RWJF Population Model'!$AO$23<>"",'RWJF Population Model'!$AO$36<>"",'RWJF Population Model'!$AO$40=""),SUMIF(Input!$IQ$2:$IQ$25001,1,Input!$MA$2:$MA$25001),0) -> 0 | W30: =IF(AND('RWJF Population Model'!$AO$25<>"",'RWJF Population Model'!$AO$23<>"",'RWJF Population Model'!$AO$36<>"",'RWJF Population Model'!$AO$40<>""),SUMIF(Input!$IQ$2:$IQ$25001,1,Input!$MA$2:$LIC$25001),0) -> 0 | X30: =IF(T30>='RWJF Population Model'!$AO$40,W30,0) -> 0 | AJ30: MYASTHENIA GRAVIS | AK30: 0 | AL30: 0 | AM30: 0 | AN30: 0 | AO30: 0 | AY30: 25 | AZ30: MYASTHENIA GRAVIS | BA30: 0 | BB30: 0 | BC30: 0 | BD30: 0
AJ31: EPILEPSY | AK31: 0 | AL31: 1 | AM31: 0.02083333333 | AN31: 0 | AO31: 0 | AY31: 26 | AZ31: EPILEPSY | BA31: 1 | BB31: 0 | BC31: 0 | BD31: 0.02083333333
T32: N= | U32: =SUM(Y6:Y30)-SUM(X6:X30) -> 18 | AJ32: OSTEOARTHRITIS | AK32: 0 | AL32: 0 | AM32: 0 | AN32: 0 | AO32: 0 | AY32: 27 | AZ32: OSTEOARTHRITIS | BA32: 0 | BB32: 0 | BC32: 0 | BD32: 0
T33: =IF(U33<>"",T32,"") ->  | U33: =IF(SUM(W6:W30)=0,"",SUM(W6:W30)-U32) ->  | AJ33: ESRD | AK33: 0 | AL33: 0 | AM33: 0 | AN33: 0 | AO33: 0 | AY33: 28 | AZ33: ESRD | BA33: 0 | BB33: 0 | BC33: 0 | BD33: 0
AJ34: PANCREATITIS CHRONIC | AK34: 0 | AL34: 0 | AM34: 0 | AN34: 0 | AO34: 0 | AY34: 29 | AZ34: PANCREATITIS CHRONIC | BA34: 0 | BB34: 0 | BC34: 0 | BD34: 0
AJ35: HEMATOLOGICAL SICKLE CELL | AK35: 0 | AL35: 0 | AM35: 0 | AN35: 0 | AO35: 0 | AY35: 30 | AZ35: HEMATOLOGICAL SICKLE CELL | BA35: 0 | BB35: 0 | BC35: 0 | BD35: 0
AJ36: PARKINSONS DISEASE | AK36: 0 | AL36: 0 | AM36: 0 | AN36: 0 | AO36: 0 | AY36: 31 | AZ36: PARKINSONS DISEASE | BA36: 0 | BB36: 0 | BC36: 0 | BD36: 0
AJ37: HIV | AK37: 0 | AL37: 0 | AM37: 0 | AN37: 0 | AO37: 0 | AY37: 32 | AZ37: HIV | BA37: 0 | BB37: 0 | BC37: 0 | BD37: 0
AJ38: RHEUMA ARTHRITIS | AK38: 0 | AL38: 1 | AM38: 0.02083333333 | AN38: 0 | AO38: 0 | AY38: 33 | AZ38: RHEUMA ARTHRITIS | BA38: 1 | BB38: 0 | BC38: 0 | BD38: 0.02083333333
AJ39: HYPERLIPIDEMIA | AK39: 0 | AL39: 0 | AM39: 0 | AN39: 0 | AO39: 0 | AY39: 34 | AZ39: HYPERLIPIDEMIA | BA39: 0 | BB39: 0 | BC39: 0 | BD39: 0
AJ40: TRANSPLANT | AK40: 0 | AL40: 0 | AM40: 0 | AN40: 0 | AO40: 0 | AY40: 35 | AZ40: TRANSPLANT | BA40: 0 | BB40: 0 | BC40: 0 | BD40: 0
AJ41: HYPERTENSION | AK41: 0 | AL41: 1 | AM41: 0.02083333333 | AN41: 0 | AO41: 0 | AY41: 36 | AZ41: HYPERTENSION | BA41: 1 | BB41: 0 | BC41: 0 | BD41: 0.02083333333
AJ42: IMMUNE DEFICIENCY | AK42: 0 | AL42: 0 | AM42: 0 | AN42: 0 | AO42: 0 | AY42: 37 | AZ42: IMMUNE DEFICIENCY | BA42: 0 | BB42: 0 | BC42: 0 | BD42: 0
AJ43: Grand Total | AO43: 7.152738516
AJ104: CC Rank & Bubble
AJ105: Rank | AK105: CC | AL105: Total Spend | AM105: PMPM | AN105: Occurences | AO105: Prevalence | AP105: Size
AJ106: 1 | AK106: CENTRAL NERV SYS DISEASE | AL106: =SUMIF(Input!$IP$2:$IP$25001,1,Input!$HJ$2:$HJ$25001) -> 0 | AM106: =SUMIF(Input!$IP$2:$IP$25001,1,Input!$HJ$2:$HJ$25001)/SUMIF(Input!$IP$2:$IP$25001,1,Input!$ER$2:$ER$25001) -> 0 | AN106: =SUMIF(Input!$IP$2:$IP$25001,1,Input!$FE$2:$FE$25001) -> 1 | AO106: =AN106/'RWJF Population Model'!$Z$47 -> 0.05555555556 | AP106: =IFERROR(AL106/SUM($AN$106:$AN$142),0) -> 0
AJ107: 2 | AK107: CEREBRAL PALSY | AL107: =SUMIF(Input!$IP$2:$IP$25001,1,Input!$HK$2:$HK$25001) -> 0 | AM107: =SUMIF(Input!$IP$2:$IP$25001,1,Input!$HK$2:$HK$25001)/SUMIF(Input!$IP$2:$IP$25001,1,Input!$ER$2:$ER$25001) -> 0 | AN107: =SUMIF(Input!$IP$2:$IP$25001,1,Input!$FF$2:$FF$25001) -> 0 | AO107: =AN107/'RWJF Population Model'!$Z$47 -> 0 | AP107: 0
AJ108: 3 | AK108: MUSCULAR DYSTROPHY | AL108: =SUMIF(Input!$IP$2:$IP$25001,1,Input!$HY$2:$HY$25001) -> 0 | AM108: =SUMIF(Input!$IP$2:$IP$25001,1,Input!$HY$2:$HY$25001)/SUMIF(Input!$IP$2:$IP$25001,1,Input!$ER$2:$ER$25001) -> 0 | AN108: =SUMIF(Input!$IP$2:$IP$25001,1,Input!$FT$2:$FT$25001) -> 0 | AO108: =AN108/'RWJF Population Model'!$Z$47 -> 0 | AP108: 0
AJ109: 4 | AK109: NEOPLASM MALIGNANT | AL109: =SUMIF(Input!$IP$2:$IP$25001,1,Input!$IA$2:$IA$25001) -> 0 | AM109: =SUMIF(Input!$IP$2:$IP$25001,1,Input!$IA$2:$IA$25001)/SUMIF(Input!$IP$2:$IP$25001,1,Input!$ER$2:$ER$25001) -> 0 | AN109: =SUMIF(Input!$IP$2:$IP$25001,1,Input!$FV$2:$FV$25001) -> 0 | AO109: =AN109/'RWJF Population Model'!$Z$47 -> 0 | AP109: 0
AJ110: 5 | AK110: DM | AL110: =SUMIF(Input!$IP$2:$IP$25001,1,Input!$HB$2:$HB$25001) -> 616.32 | AM110: =SUMIF(Input!$IP$2:$IP$25001,1,Input!$HB$2:$HB$25001)/SUMIF(Input!$IP$2:$IP$25001,1,Input!$ER$2:$ER$25001) -> 2.963076923 | AN110: =SUMIF(Input!$IP$2:$IP$25001,1,Input!$EW$2:$EW$25001) -> 1 | AO110: =AN110/'RWJF Population Model'!$Z$47 -> 0.05555555556 | AP110: 47.40923077
AJ111: 6 | AK111: HEMATOLOGICAL SICKLE CELL | AL111: =SUMIF(Input!$IP$2:$IP$25001,1,Input!$HR$2:$HR$25001) -> 0 | AM111: =SUMIF(Input!$IP$2:$IP$25001,1,Input!$HR$2:$HR$25001)/SUMIF(Input!$IP$2:$IP$25001,1,Input!$ER$2:$ER$25001) -> 0 | AN111: =SUMIF(Input!$IP$2:$IP$25001,1,Input!$FM$2:$FM$25001) -> 0 | AO111: =AN111/'RWJF Population Model'!$Z$47 -> 0 | AP111: 0
AJ112: 7 | AK112: INFLAMMATORY BOWEL DISEASE | AL112: =SUMIF(Input!$IP$2:$IP$25001,1,Input!$HU$2:$HU$25001) -> 0 | AM112: =SUMIF(Input!$IP$2:$IP$25001,1,Input!$HU$2:$HU$25001)/SUMIF(Input!$IP$2:$IP$25001,1,Input!$ER$2:$ER$25001) -> 0 | AN112: =SUMIF(Input!$IP$2:$IP$25001,1,Input!$FP$2:$FP$25001) -> 0 | AO112: =AN112/'RWJF Population Model'!$Z$47 -> 0 | AP112: 0
AJ113: 8 | AK113: PARALYSIS | AL113: =SUMIF(Input!$IP$2:$IP$25001,1,Input!$ID$2:$ID$25001) -> 0 | AM113: =SUMIF(Input!$IP$2:$IP$25001,1,Input!$ID$2:$ID$25001)/SUMIF(Input!$IP$2:$IP$25001,1,Input!$ER$2:$ER$25001) -> 0 | AN113: =SUMIF(Input!$IP$2:$IP$25001,1,Input!$FY$2:$FY$25001) -> 0 | AO113: =AN113/'RWJF Population Model'!$Z$47 -> 0 | AP113: 0
AJ114: 9 | AK114: EPILEPSY | AL114: =SUMIF(Input!$IP$2:$IP$25001,1,Input!$HP$2:$HP$25001) -> 0 | AM114: =SUMIF(Input!$IP$2:$IP$25001,1,Input!$HP$2:$HP$25001)/SUMIF(Input!$IP$2:$IP$25001,1,Input!$ER$2:$ER$25001) -> 0 | AN114: =SUMIF(Input!$IP$2:$IP$25001,1,Input!$FK$2:$FK$25001) -> 1 | AO114: =AN114/'RWJF Population Model'!$Z$47 -> 0.05555555556 | AP114: 0
AJ115: 10 | AK115: SPINA BIFIDA SCI | AL115: =SUMIF(Input!$IP$2:$IP$25001,1,Input!$IH$2:$IH$25001) -> 0 | AM115: =SUMIF(Input!$IP$2:$IP$25001,1,Input!$IH$2:$IH$25001)/SUMIF(Input!$IP$2:$IP$25001,1,Input!$ER$2:$ER$25001) -> 0 | AN115: =SUMIF(Input!$IP$2:$IP$25001,1,Input!$GC$2:$GC$25001) -> 0 | AO115: =AN115/'RWJF Population Model'!$Z$47 -> 0 | AP115: 0
AJ116: 11 | AK116: ASTHMA | AL116: =SUMIF(Input!$IP$2:$IP$25001,1,Input!$GX$2:$GX$25001) -> 3431.95 | AM116: =SUMIF(Input!$IP$2:$IP$25001,1,Input!$GX$2:$GX$25001)/SUMIF(Input!$IP$2:$IP$25001,1,Input!$ER$2:$ER$25001) -> 16.49975962 | AN116: =SUMIF(Input!$IP$2:$IP$25001,1,Input!$ES$2:$ES$25001) -> 8 | AO116: =AN116/'RWJF Population Model'!$Z$47 -> 0.4444444444 | AP116: 263.9961538
AJ117: 12 | AK117: ESRD | AL117: =SUMIF(Input!$IP$2:$IP$25001,1,Input!$HQ$2:$HQ$25001) -> 0 | AM117: =SUMIF(Input!$IP$2:$IP$25001,1,Input!$HQ$2:$HQ$25001)/SUMIF(Input!$IP$2:$IP$25001,1,Input!$ER$2:$ER$25001) -> 0 | AN117: =SUMIF(Input!$IP$2:$IP$25001,1,Input!$FL$2:$FL$25001) -> 0 | AO117: =AN117/'RWJF Population Model'!$Z$47 -> 0 | AP117: 0
AJ118: 13 | AK118: MYASTHENIA GRAVIS | AL118: =SUMIF(Input!$IP$2:$IP$25001,1,Input!$HZ$2:$HZ$25001) -> 0 | AM118: =SUMIF(Input!$IP$2:$IP$25001,1,Input!$HZ$2:$HZ$25001)/SUMIF(Input!$IP$2:$IP$25001,1,Input!$ER$2:$ER$25001) -> 0 | AN118: =SUMIF(Input!$IP$2:$IP$25001,1,Input!$FU$2:$FU$25001) -> 0 | AO118: =AN118/'RWJF Population Model'!$Z$47 -> 0 | AP118: 0
AJ119: 14 | AK119: COPD | AL119: =SUMIF(Input!$IP$2:$IP$25001,1,Input!$GY$2:$GY$25001) -> 0 | AM119: =SUMIF(Input!$IP$2:$IP$25001,1,Input!$GY$2:$GY$25001)/SUMIF(Input!$IP$2:$IP$25001,1,Input!$ER$2:$ER$25001) -> 0 | AN119: =SUMIF(Input!$IP$2:$IP$25001,1,Input!$ET$2:$ET$25001) -> 0 | AO119: =AN119/'RWJF Population Model'!$Z$47 -> 0 | AP119: 0
AJ120: 15 | AK120: TRANSPLANT | AL120: =SUMIF(Input!$IP$2:$IP$25001,1,Input!$IG$2:$IG$25001) -> 0 | AM120: =SUMIF(Input!$IP$2:$IP$25001,1,Input!$IG$2:$IG$25001)/SUMIF(Input!$IP$2:$IP$25001,1,Input!$ER$2:$ER$25001) -> 0 | AN120: =SUMIF(Input!$IP$2:$IP$25001,1,Input!$GB$2:$GB$25001) -> 0 | AO120: =AN120/'RWJF Population Model'!$Z$47 -> 0 | AP120: 0
AJ121: 16 | AK121: RHEUMA ARTHRITIS | AL121: =SUMIF(Input!$IP$2:$IP$25001,1,Input!$HF$2:$HF$25001) -> 0 | AM121: =SUMIF(Input!$IP$2:$IP$25001,1,Input!$HF$2:$HF$25001)/SUMIF(Input!$IP$2:$IP$25001,1,Input!$ER$2:$ER$25001) -> 0 | AN121: =SUMIF(Input!$IP$2:$IP$25001,1,Input!$FA$2:$FA$25001) -> 1 | AO121: =AN121/'RWJF Population Model'!$Z$47 -> 0.05555555556 | AP121: 0
AJ122: 17 | AK122: COAGULATION DEFECTS | AL122: =SUMIF(Input!$IP$2:$IP$25001,1,Input!$HN$2:$HN$25001) -> 0 | AM122: =SUMIF(Input!$IP$2:$IP$25001,1,Input!$HN$2:$HN$25001)/SUMIF(Input!$IP$2:$IP$25001,1,Input!$ER$2:$ER$25001) -> 0 | AN122: =SUMIF(Input!$IP$2:$IP$25001,1,Input!$FI$2:$FI$25001) -> 0 | AO122: =AN122/'RWJF Population Model'!$Z$47 -> 0 | AP122: 0
AJ123: 18 | AK123: MIGRAINE | AL123: =SUMIF(Input!$IP$2:$IP$25001,1,Input!$HW$2:$HW$25001) -> 0 | AM123: =SUMIF(Input!$IP$2:$IP$25001,1,Input!$HW$2:$HW$25001)/SUMIF(Input!$IP$2:$IP$25001,1,Input!$ER$2:$ER$25001) -> 0 | AN123: =SUMIF(Input!$IP$2:$IP$25001,1,Input!$FR$2:$FR$25001) -> 0 | AO123: =AN123/'RWJF Population Model'!$Z$47 -> 0 | AP123: 0
AJ124: 19 | AK124: LIVER DISEASE | AL124: =SUMIF(Input!$IP$2:$IP$25001,1,Input!$HV$2:$HV$25001) -> 0 | AM124: =SUMIF(Input!$IP$2:$IP$25001,1,Input!$HV$2:$HV$25001)/SUMIF(Input!$IP$2:$IP$25001,1,Input!$ER$2:$ER$25001) -> 0 | AN124: =SUMIF(Input!$IP$2:$IP$25001,1,Input!$FQ$2:$FQ$25001) -> 0 | AO124: =AN124/'RWJF Population Model'!$Z$47 -> 0 | AP124: 0
AJ125: 20 | AK125: IMMUNE DEFICIENCY | AL125: =SUMIF(Input!$IP$2:$IP$25001,1,Input!$HT$2:$HT$25001) -> 0 | AM125: =SUMIF(Input!$IP$2:$IP$25001,1,Input!$HT$2:$HT$25001)/SUMIF(Input!$IP$2:$IP$25001,1,Input!$ER$2:$ER$25001) -> 0 | AN125: =SUMIF(Input!$IP$2:$IP$25001,1,Input!$FO$2:$FO$25001) -> 0 | AO125: =AN125/'RWJF Population Model'!$Z$47 -> 0 | AP125: 0
AJ126: 21 | AK126: CEREBRO VASCULAR DISEASE | AL126: =SUMIF(Input!$IP$2:$IP$25001,1,Input!$HL$2:$HL$25001) -> 0 | AM126: =SUMIF(Input!$IP$2:$IP$25001,1,Input!$HL$2:$HL$25001)/SUMIF(Input!$IP$2:$IP$25001,1,Input!$ER$2:$ER$25001) -> 0 | AN126: =SUMIF(Input!$IP$2:$IP$25001,1,Input!$FG$2:$FG$25001) -> 0 | AO126: =AN126/'RWJF Population Model'!$Z$47 -> 0 | AP126: 0
AJ127: 22 | AK127: HYPERTENSION | AL127: =SUMIF(Input!$IP$2:$IP$25001,1,Input!$HE$2:$HE$25001) -> 0 | AM127: =SUMIF(Input!$IP$2:$IP$25001,1,Input!$HE$2:$HE$25001)/SUMIF(Input!$IP$2:$IP$25001,1,Input!$ER$2:$ER$25001) -> 0 | AN127: =SUMIF(Input!$IP$2:$IP$25001,1,Input!$EZ$2:$EZ$25001) -> 1 | AO127: =AN127/'RWJF Population Model'!$Z$47 -> 0.05555555556 | AP127: 0
AJ128: 23 | AK128: CYSTIC FIBROSIS | AL128: =SUMIF(Input!$IP$2:$IP$25001,1,Input!$HO$2:$HO$25001) -> 0 | AM128: =SUMIF(Input!$IP$2:$IP$25001,1,Input!$HO$2:$HO$25001)/SUMIF(Input!$IP$2:$IP$25001,1,Input!$ER$2:$ER$25001) -> 0 | AN128: =SUMIF(Input!$IP$2:$IP$25001,1,Input!$FJ$2:$FJ$25001) -> 0 | AO128: =AN128/'RWJF Population Model'!$Z$47 -> 0 | AP128: 0
AJ129: 24 | AK129: RENAL DISEASE | AL129: =SUMIF(Input!$IP$2:$IP$25001,1,Input!$IF$2:$IF$25001) -> 0 | AM129: =SUMIF(Input!$IP$2:$IP$25001,1,Input!$IF$2:$IF$25001)/SUMIF(Input!$IP$2:$IP$25001,1,Input!$ER$2:$ER$25001) -> 0 | AN129: =SUMIF(Input!$IP$2:$IP$25001,1,Input!$GA$2:$GA$25001) -> 0 | AO129: =AN129/'RWJF Population Model'!$Z$47 -> 0 | AP129: 0
AJ130: 25 | AK130: LUPUS CONN TISSUE DISORDERS | AL130: =SUMIF(Input!$IP$2:$IP$25001,1,Input!$HH$2:$HH$25001) -> 0 | AM130: =SUMIF(Input!$IP$2:$IP$25001,1,Input!$HH$2:$HH$25001)/SUMIF(Input!$IP$2:$IP$25001,1,Input!$ER$2:$ER$25001) -> 0 | AN130: =SUMIF(Input!$IP$2:$IP$25001,1,Input!$FC$2:$FC$25001) -> 0 | AO130: =AN130/'RWJF Population Model'!$Z$47 -> 0 | AP130: 0
AJ131: 26 | AK131: HIV | AL131: =SUMIF(Input!$IP$2:$IP$25001,1,Input!$HS$2:$HS$25001) -> 0 | AM131: =SUMIF(Input!$IP$2:$IP$25001,1,Input!$HS$2:$HS$25001)/SUMIF(Input!$IP$2:$IP$25001,1,Input!$ER$2:$ER$25001) -> 0 | AN131: =SUMIF(Input!$IP$2:$IP$25001,1,Input!$FN$2:$FN$25001) -> 0 | AO131: =AN131/'RWJF Population Model'!$Z$47 -> 0 | AP131: 0
AJ132: 27 | AK132: MULTIPLE SCLEROSIS | AL132: =SUMIF(Input!$IP$2:$IP$25001,1,Input!$HX$2:$HX$25001) -> 0 | AM132: =SUMIF(Input!$IP$2:$IP$25001,1,Input!$HX$2:$HX$25001)/SUMIF(Input!$IP$2:$IP$25001,1,Input!$ER$2:$ER$25001) -> 0 | AN132: =SUMIF(Input!$IP$2:$IP$25001,1,Input!$FS$2:$FS$25001) -> 0 | AO132: =AN132/'RWJF Population Model'!$Z$47 -> 0 | AP132: 0
AJ133: 28 | AK133: CAD | AL133: =SUMIF(Input!$IP$2:$IP$25001,1,Input!$HA$2:$HA$25001) -> 0 | AM133: =SUMIF(Input!$IP$2:$IP$25001,1,Input!$HA$2:$HA$25001)/SUMIF(Input!$IP$2:$IP$25001,1,Input!$ER$2:$ER$25001) -> 0 | AN133: =SUMIF(Input!$IP$2:$IP$25001,1,Input!$EV$2:$EV$25001) -> 0 | AO133: =AN133/'RWJF Population Model'!$Z$47 -> 0 | AP133: 0
AJ134: 29 | AK134: OSTEOARTHRITIS | AL134: =SUMIF(Input!$IP$2:$IP$25001,1,Input!$HG$2:$HG$25001) -> 0 | AM134: =SUMIF(Input!$IP$2:$IP$25001,1,Input!$HG$2:$HG$25001)/SUMIF(Input!$IP$2:$IP$25001,1,Input!$ER$2:$ER$25001) -> 0 | AN134: =SUMIF(Input!$IP$2:$IP$25001,1,Input!$FB$2:$FB$25001) -> 0 | AO134: =AN134/'RWJF Population Model'!$Z$47 -> 0 | AP134: 0
AJ135: 30 | AK135: CHRONIC HEPATITIS | AL135: =SUMIF(Input!$IP$2:$IP$25001,1,Input!$HM$2:$HM$25001) -> 0 | AM135: =SUMIF(Input!$IP$2:$IP$25001,1,Input!$HM$2:$HM$25001)/SUMIF(Input!$IP$2:$IP$25001,1,Input!$ER$2:$ER$25001) -> 0 | AN135: =SUMIF(Input!$IP$2:$IP$25001,1,Input!$FH$2:$FH$25001) -> 0 | AO135: =AN135/'RWJF Population Model'!$Z$47 -> 0 | AP135: 0
AJ136: 31 | AK136: OSTEOPOROSIS | AL136: =SUMIF(Input!$IP$2:$IP$25001,1,Input!$IB$2:$IB$25001) -> 0 | AM136: =SUMIF(Input!$IP$2:$IP$25001,1,Input!$IB$2:$IB$25001)/SUMIF(Input!$IP$2:$IP$25001,1,Input!$ER$2:$ER$25001) -> 0 | AN136: =SUMIF(Input!$IP$2:$IP$25001,1,Input!$FW$2:$FW$25001) -> 0 | AO136: =AN136/'RWJF Population Model'!$Z$47 -> 0 | AP136: 0
AJ137: 32 | AK137: HYPERLIPIDEMIA | AL137: =SUMIF(Input!$IP$2:$IP$25001,1,Input!$HD$2:$HD$25001) -> 0 | AM137: =SUMIF(Input!$IP$2:$IP$25001,1,Input!$HD$2:$HD$25001)/SUMIF(Input!$IP$2:$IP$25001,1,Input!$ER$2:$ER$25001) -> 0 | AN137: =SUMIF(Input!$IP$2:$IP$25001,1,Input!$EY$2:$EY$25001) -> 0 | AO137: =AN137/'RWJF Population Model'!$Z$47 -> 0 | AP137: 0
AJ138: 33 | AK138: CHF | AL138: =SUMIF(Input!$IP$2:$IP$25001,1,Input!$GZ$2:$GZ$25001) -> 0 | AM138: =SUMIF(Input!$IP$2:$IP$25001,1,Input!$GZ$2:$GZ$25001)/SUMIF(Input!$IP$2:$IP$25001,1,Input!$ER$2:$ER$25001) -> 0 | AN138: =SUMIF(Input!$IP$2:$IP$25001,1,Input!$EU$2:$EU$25001) -> 0 | AO138: =AN138/'RWJF Population Model'!$Z$47 -> 0 | AP138: 0
AJ139: 34 | AK139: MORBID OBESITY | AL139: =SUMIF(Input!$IP$2:$IP$25001,1,Input!$HC$2:$HC$25001) -> 0 | AM139: =SUMIF(Input!$IP$2:$IP$25001,1,Input!$HC$2:$HC$25001)/SUMIF(Input!$IP$2:$IP$25001,1,Input!$ER$2:$ER$25001) -> 0 | AN139: =SUMIF(Input!$IP$2:$IP$25001,1,Input!$EX$2:$EX$25001) -> 0 | AO139: =AN139/'RWJF Population Model'!$Z$47 -> 0 | AP139: 0
AJ140: 35 | AK140: ATRIAL FIBRILLATION | AL140: =SUMIF(Input!$IP$2:$IP$25001,1,Input!$HI$2:$HI$25001) -> 0 | AM140: =SUMIF(Input!$IP$2:$IP$25001,1,Input!$HI$2:$HI$25001)/SUMIF(Input!$IP$2:$IP$25001,1,Input!$ER$2:$ER$25001) -> 0 | AN140: =SUMIF(Input!$IP$2:$IP$25001,1,Input!$FD$2:$FD$25001) -> 0 | AO140: =AN140/'RWJF Population Model'!$Z$47 -> 0 | AP140: 0
AJ141: 36 | AK141: PANCREATITIS CHRONIC | AL141: =SUMIF(Input!$IP$2:$IP$25001,1,Input!$IC$2:$IC$25001) -> 0 | AM141: =SUMIF(Input!$IP$2:$IP$25001,1,Input!$IC$2:$IC$25001)/SUMIF(Input!$IP$2:$IP$25001,1,Input!$ER$2:$ER$25001) -> 0 | AN141: =SUMIF(Input!$IP$2:$IP$25001,1,Input!$FX$2:$FX$25001) -> 0 | AO141: =AN141/'RWJF Population Model'!$Z$47 -> 0 | AP141: 0
AJ142: 37 | AK142: PARKINSONS DISEASE | AL142: =SUMIF(Input!$IP$2:$IP$25001,1,Input!$IE$2:$IE$25001) -> 0 | AM142: =SUMIF(Input!$IP$2:$IP$25001,1,Input!$IE$2:$IE$25001)/SUMIF(Input!$IP$2:$IP$25001,1,Input!$ER$2:$ER$25001) -> 0 | AN142: =SUMIF(Input!$IP$2:$IP$25001,1,Input!$FZ$2:$FZ$25001) -> 0 | AO142: =AN142/'RWJF Population Model'!$Z$47 -> 0 | AP142: 0
AL143: =SUM(AL106:AL142) -> 4048.27 | AN143: =SUM(AN106:AN142) -> 13
